Workbook

Sheet 등록현황(호텔업)
A1: ※ 노란색 항목은 필수 입력 사항입니다
A3: 호텔업 현황(숙박)
A6: 연번 | B6: 지역 | C6: 업종분류 | D6: 등급 | E6: 호 텔 명 | F6: 법 인 명 | G6: 객 실 수 | L6: 소 재 지 | M6: 대표자 / 총지배인 | N6: 전화번호 / FAX번호 | O6: 등록년월일 (변경등록) | P6: 자본금(원) | Q6: 비 고 (휴업 등 여부)
G7: 스탠더드Standard | H7: 디럭스 Deluxe | I7: 스위트 Suite | J7: 한실 | K7: 소계
A8: 소계 | B8: 서울특별시 | G8: =SUM(G9:G169) -> 15,429 | H8: =SUM(H9:H169) -> 8,845 | I8: 2,486 | J8: 396 | K8: =SUM(G8:J8) -> 27,156
A9: 1 | B9: 서울특별시 | C9: 관광호텔업 | D9: 특1 | E9: 그랜드 인터컨티넨탈 서울 파르나스 | F9: 파르나스호텔㈜ | G9: 143 | H9: 79 | I9: 324 | J9: 0 | K9: =SUM(G9:J9) -> 546 | L9: 서울특별시 강남구 테헤란로 521 | M9: 송홍섭 | N9: 559-7045 / 556-3380 | O9: 1988-08-26
A10: 2 | B10: 서울특별시 | C10: 관광호텔업 | D10: 1 | E10: 그린그래스관광호텔 | G10: 64 | H10: 9 | I10: 3 | J10: 0 | K10: =SUM(G10:J10) -> 76 | L10: 서울특별시 강남구 테헤란로63길 9 | M10: 오석구 | N10: 552-8877 / 2186-2720 | O10: 1988-12-08
A11: 3 | B11: 서울특별시 | C11: 관광호텔업 | D11: 특1 | E11: 노보텔앰배서더강남 서울 | F11: 앰배서더즈㈜ | G11: 189 | H11: 131 | I11: 9 | J11: 6 | K11: 335 | L11: 서울특별시 강남구 봉은사로 130 | M11: 서정호 김광욱 | N11: 531-6453 / 531-6887 | O11: 1993-08-25
A12: 4 | B12: 서울특별시 | C12: 관광호텔업 | D12: 2 | E12: 녹스부띠끄관광호텔 | G12: 34 | H12: 4 | I12: 3 | J12: 0 | K12: 41 | L12: 서울특별시 강남구 테헤란로37길 13-13 | M12: 이원구 장윤옥 | N12: 3454-1888 / 3454-1885 | O12: 2011-10-13
A13: 5 | B13: 서울특별시 | C13: 관광호텔업 | D13: 2 | E13: 뉴힐탑관광호텔 | F13: 삼원관광개발㈜ | G13: 55 | H13: 15 | I13: 6 | J13: 6 | K13: 82 | L13: 서울특별시 강남구 논현로 645 | M13: 김두남 | N13: 514-3616 / 542-9491 | O13: 1993-02-05
A14: 6 | B14: 서울특별시 | C14: 관광호텔업 | D14: 2 | E14: 다이내스티관광호텔 | G14: 10 | H14: 30 | I14: 6 | J14: 18 | K14: 64 | L14: 서울특별시 강남구 봉은사로 125 | M14: 박소담 김정호 | N14: 540-3041 / 543-1429 | O14: 1989-12-20
A15: 7 | B15: 서울특별시 | C15: 관광호텔업 | D15: 3 | E15: 라까사관광호텔 | F15: ㈜라까사호텔 | G15: 12 | H15: 44 | I15: 5 | J15: 0 | K15: 61 | L15: 서울특별시 강남구 도산대로1길 83 | M15: 이현구 | N15: 546-0088 / 516-0066 | O15: 1990-02-27
A16: 8 | B16: 서울특별시 | C16: 관광호텔업 | D16: 특2 | E16: 라마다서울호텔 | F16: 라마다관광㈜ | G16: 142 | H16: 97 | I16: 7 | J16: 0 | K16: 246 | L16: 서울특별시 강남구 봉은사로 410 | M16: 문병근 | N16: 6202-2000 / 6202-2001 | O16: 1986-12-20
A17: 9 | B17: 서울특별시 | C17: 관광호텔업 | D17: 3 | E17: 렉스관광호텔 | G17: 35 | H17: 21 | I17: 0 | J17: 0 | K17: 56 | L17: 서울특별시 강남구 강남대로 588 | M17: 김우남 | N17: 511-4488 / 512-3883 | O17: 2004-05-13
A18: 10 | B18: 서울특별시 | C18: 관광호텔업 | D18: 특1 | E18: 르네상스서울 호텔 | F18: 남우관광㈜ | G18: 235 | H18: 240 | I18: 21 | J18: 1 | K18: 497 | L18: 서울특별시 강남구 테헤란로 237 | M18: 조남옥 | N18: 2222-8383 / 553-8118 | O18: 1988-06-03
A19: 11 | B19: 서울특별시 | C19: 관광호텔업 | D19: 특2 | E19: 머큐어 엠버서더 쏘도배 호텔 | F19: ㈜희앤썬 | G19: 196 | H19: 72 | I19: 18 | J19: 2 | K19: 288 | L19: 서울특별시 강남구 테헤란로25길 10 | M19: 우희명 | N19: 2050-6000 / 2050-6001 | O19: 2012-03-22
A20: 12 | B20: 서울특별시 | C20: 관광호텔업 | D20: 미정 | E20: 베네치아 | G20: 55 | H20: 7 | I20: 0 | J20: 0 | K20: 62 | L20: 서울특별시 강남구 논현로 561 | M20: 남정현 | N20: 556-4001 / 563-3221 | O20: 2003-01-10
A21: 13 | B21: 서울특별시 | C21: 관광호텔업 | D21: 특2 | E21: 베스트웨스턴프리미어 강남 | F21: 신세계개발㈜ | G21: 86 | H21: 40 | I21: 0 | J21: 2 | K21: 128 | L21: 서울특별시 강남구 봉은사로 139 | M21: 김준한 | N21: 6474-2000 / 6474-2210 | O21: 2005-03-09
A22: 14 | B22: 서울특별시 | C22: 관광호텔업 | D22: 특2 | E22: 삼정관광호텔 | F22: 삼정관광호텔㈜ | G22: 60 | H22: 90 | I22: 13 | J22: 0 | K22: 163 | L22: 서울특별시 강남구 봉은사로 150 | M22: 박명근 박명길 | N22: 563-3525 / 562-6628 | O22: 1982-02-09
A23: 15 | B23: 서울특별시 | C23: 관광호텔업 | D23: 1 | E23: 선샤인 관광호텔 | F23: ㈜선샤인 | G23: 80 | H23: 26 | I23: 3 | J23: 2 | K23: 111 | L23: 서울특별시 강남구 도산대로 205 | M23: 황대현 | N23: 548-8222 / 515-7222 | O23: 1988-07-30
A24: 16 | B24: 서울특별시 | C24: 관광호텔업 | D24: 1 | E24: 세울스타스호텔 | G24: 162 | H24: 0 | I24: 7 | J24: 0 | K24: 169 | L24: 서울특별시 강남구 봉은사로 223 | M24: 김향미 | N24: 550-9700 / 550-9720 | O24: 2010-07-22
A25: 17 | B25: 서울특별시 | C25: 관광호텔업 | D25: 1 | E25: 영동관광호텔 | F25: 용창산업㈜ | G25: 72 | H25: 48 | I25: 3 | J25: 8 | K25: 131 | L25: 서울특별시 강남구 도산대로 144 | M25: 오상준 | N25: 518-1145 / 3445-4331 | O25: 1997-12-30
A26: 18 | B26: 서울특별시 | C26: 가족호텔업 | D26: 가족 | E26: 오크우드프리미어 | F26: 한무컨벤션㈜ | G26: 164 | H26: 90 | I26: 26 | J26: 0 | K26: 280 | L26: 서울특별시 강남구 테헤란로87길 46 | M26: 정진양 | N26: 3466-7000 / 3466-7700 | O26: 2001-10-30
A27: 19 | B27: 서울특별시 | C27: 관광호텔업 | D27: 1 | E27: 이비스앰배서더 서울 | F27: 앰배스텔㈜ | G27: 257 | H27: 56 | J27: 3 | K27: =SUM(G27:J27) -> 316 | L27: 서울특별시 강남구 삼성로 431 | M27: 주명건 | N27: 3011-8033 / 3011-8010 | O27: 2003-10-13
A28: 20 | B28: 서울특별시 | C28: 관광호텔업 | D28: 특1 | E28: 인터컨티넨탈 서울 코엑스 | F28: 파르나스호텔㈜ | G28: 305 | H28: 312 | I28: 36 | J28: 1 | K28: 654 | L28: 서울특별시 강남구 봉은사로 524 | M28: 송홍섭 | N28: 559-7045 / 556-3380 | O28: 1999-09-21
A29: 21 | B29: 서울특별시 | C29: 관광호텔업 | D29: 특1 | E29: 임피리얼 팰리스 호텔 | F29: 태승21㈜ | G29: 275 | H29: 94 | I29: 35 | J29: 0 | K29: 404 | L29: 서울특별시 강남구 언주로 640 | M29: 이철희 | N29: 3440-8235 / 3440-8230 | O29: 1987-02-06
A30: 22 | B30: 서울특별시 | C30: 관광호텔업 | D30: 2 | E30: 제이비스 호텔 | G30: 10 | H30: 37 | I30: 6 | J30: 0 | K30: 53 | L30: 서울특별시 강남구 선릉로90길 46 | M30: 송철용 | N30: 521-6727 / 3454-1885 | O30: 2012-01-17
A31: 23 | B31: 서울특별시 | C31: 관광호텔업 | D31: 1 | E31: 트리아관광호텔 | G31: 33 | H31: 0 | I31: 17 | J31: 0 | K31: 50 | L31: 서울특별시 강남구 테헤란로33길 16 | M31: 한석원 한길수 | N31: 553-2471 / 553-6675 | O31: 2007-03-26
A32: 24 | B32: 서울특별시 | C32: 관광호텔업 | D32: 3 | E32: 티파니관광호텔 | G32: 29 | H32: 15 | I32: 9 | J32: 0 | K32: 53 | L32: 서울특별시 강남구 영동대로 712 | M32: 허금형 김종범 김종국 | N32: 545-0015 / 545-0426 | O32: 1994-03-30
A33: 25 | B33: 서울특별시 | C33: 관광호텔업 | D33: 특1 | E33: 파크하얏트서울 | F33: 현대산업개발㈜ | G33: 112 | H33: 35 | I33: 38 | J33: 0 | K33: 185 | L33: 서울특별시 강남구 테헤란로 606 | M33: 박창민 | N33: 2016-1241 / 2016-4599 | O33: 2005-03-29
A34: 26 | B34: 서울특별시 | C34: 관광호텔업 | D34: 1 | E34: 팝그린관광호텔 | G34: 54 | H34: 6 | I34: 0 | J34: 9 | K34: =SUM(G34:J34) -> 69 | L34: 서울특별시 강남구 압구정로 206 | M34: 고사례 | N34: 544-6623 / 543-2112 | O34: 2001-12-26
A35: 27 | B35: 서울특별시 | C35: 관광호텔업 | D35: 미정 | E35: 호텔 더 디자이너스 | G35: 54 | H35: 27 | I35: 9 | J35: 0 | K35: 90 | L35: 서울특별시 강남구 테헤란로79길 7 | M35: 김영식 강홍원 최윤배 | N35: 568-8371 / 744-8661 | O35: 2012-07-04
A36: 28 | B36: 서울특별시 | C36: 관광호텔업 | D36: 미정 | E36: 호텔라미르 | F36: ㈜호텔라미르 | G36: 148 | H36: 0 | I36: 2 | J36: 0 | K36: 150 | L36: 서울특별시 강남구 언주로 547 | M36: 고정옥 | N36: 2018-0000 / 2018-0020 | O36: 2008-11-03
A37: 29 | B37: 서울특별시 | C37: 관광호텔업 | D37: 특2 | E37: 호텔리베라 서울 | F37: 신안관광㈜ | G37: 147 | H37: 142 | I37: 13 | J37: 17 | K37: 319 | L37: 서울특별시 강남구 영동대로 737 | M37: 정재하 | N37: 3438-4125 / 545-0848 | O37: 1987-12-10
A38: 30 | B38: 서울특별시 | C38: 관광호텔업 | D38: 특1 | E38: 호텔리츠칼튼서울 | F38: 전원산업㈜ | G38: 230 | H38: 62 | I38: 82 | J38: 0 | K38: 374 | L38: 서울특별시 강남구 봉은사로 120 | M38: 맹무섭 | N38: 3481-8135 / 3451-8155 | O38: 1995-04-21
A39: 31 | B39: 서울특별시 | C39: 관광호텔업 | D39: 특2 | E39: 호텔엘루이 | G39: 67 | H39: 67 | I39: 4 | J39: 1 | K39: 139 | L39: 서울특별시 강남구 도산대로 551 | M39: 문영규 | N39: 514-1622 / 514-3344 | O39: 1992-04-10
A40: 32 | B40: 서울특별시 | C40: 관광호텔업 | D40: 3 | E40: 호텔자이언트 | F40: 성제기업㈜ | G40: 50 | H40: 0 | I40: 2 | J40: 0 | K40: =SUM(G40:J40) -> 52 | L40: 서울특별시 강남구 봉은사로 459 | M40: 홍순정 | N40: 546-0225 / 545-1805 | O40: 1987-06-27
A41: 33 | B41: 서울특별시 | C41: 관광호텔업 | D41: 특2 | E41: 호텔프리마 | F41: 호텔프리마㈜ | G41: 60 | H41: 0 | I41: 52 | J41: 8 | K41: 120 | L41: 서울특별시 강남구 도산대로 536 | M41: 이상준 | N41: 6006-9114 / 543-8523 | O41: 1988-09-07
A42: 34 | B42: 서울특별시 | C42: 관광호텔업 | D42: 미정 | E42: 호텔G | G42: 50 | H42: 0 | I42: 0 | J42: 3 | K42: 53 | L42: 서울특별시 강남구 학동로 141 | M42: 최남일 | N42: 542-1511 / 548-3314 | O42: 2000-01-27
A43: 35 | B43: 서울특별시 | C43: 관광호텔업 | D43: 2 | E43: 힐탑관광호텔 | F43: 우창홀딩스㈜ | G43: 39 | H43: 3 | I43: 6 | J43: 9 | K43: 57 | L43: 서울특별시 강남구 논현로 647 | M43: 이한림 | N43: 540-3456 / 540-3454 | O43: 1987-05-01
A44: 36 | B44: 서울특별시 | C44: 관광호텔업 | D44: 3 | E44: 발리관광호텔 | F44: 황재필, 채효순 | G44: 15 | H44: 25 | I44: 10 | J44: 0 | K44: 50 | L44: 서울 강동구 성내동 417-5 | M44: 황재필/ 김종서 | N44: 02)484-1411 02)488-6428 | O44: 1990.1.20
A45: 37 | B45: 서울특별시 | C45: 관광호텔업 | D45: 미정 | E45: 바고관광호텔 | F45: 서봉석 | G45: 38 | H45: 4 | I45: 0 | J45: 0 | K45: 42 | L45: 서울시 강동구 천호동 324-39 | M45: 서봉석/ 강시철 | N45: 02)478-2575 02)478-2577 | O45: 2012.9.7
A46: 38 | B46: 서울특별시 | C46: 관광호텔업 | D46: 미정 | E46: 아르고호텔 | F46: ㈜파란하는맨드지 | G46: 15 | H46: 37 | I46: 3 | J46: 0 | K46: 55 | L46: 서울 강동구 길1동 415-18 | M46: 마상호/ 정관희 | N46: 02)422-2141 02)422-4204 | O46: 2003.4.8
A47: 39 | B47: 서울특별시 | C47: 관광호텔업 | D47: 미정 | E47: 코리아관광호텔 | F47: 하갑현, 박영애 | G47: 31 | H47: 6 | I47: 1 | J47: 2 | K47: 40 | L47: 서울 강동구 성내동 199-7 | M47: 하갑현/ 전경주 | N47: 02)482-5900 02)471-1838 | O47: 2008.12.26
A48: 40 | B48: 서울특별시 | C48: 관광호텔업 | D48: 미정 | E48: 투비인관광호텔 | F48: 정낙생, 이윤숙 | G48: 92 | H48: 0 | I48: 0 | J48: 0 | K48: 92 | L48: 서울 강동구 길동 388-2 | M48: 정낙생외1 | N48: 02)470-2851 02)470-8864 | O48: 2010.11.18
A49: 41 | B49: 서울특별시 | C49: 관광호텔업 | D49: 1등급 | E49: 호텔빅토리아 | F49: ㈜빅토리아산업개발 | G49: 29 | H49: 82 | I49: 1 | K49: 112 | L49: 강북구 미아4동 42-8 | M49: 노헌호/ 박경호 | N49: 02)986-2000/ 02)985-0462 | O49: 1991.04.26
A50: 42 | B50: 서울특별시 | C50: 관광호텔업 | D50: 1등급 | E50: 아카데미 하우스 | F50: 재단법인 기장 아카데미하우스 | G50: 28 | H50: 7 | I50: 8 | J50: 8 | K50: 51 | L50: 강북구 수유6동 산 76번지 | M50: 임명규/ 이규환 | N50: 02)3499-7500/ 02)908-4673 | O50: 1994.09.27
A51: 43 | B51: 서울특별시 | C51: 관광호텔업 | D51: 특1급 | E51: 메이필드호텔 | F51: 정림개발㈜ | G51: 54 | H51: 26 | I51: 157 | J51: 2 | K51: 239 | L51: 강서구 외발산동 426외 1필지 | M51: 이종문 | N51: 2660-9000(9125) | O51: 2002-07-15 | P51: - | Q51: 영업
A52: 44 | B52: 서울특별시 | C52: 관광호텔업 | D52: 특2급 | E52: 베스트웨스턴 나이아가라호텔 | F52: ㈜나이아가라관광 | G52: 62 | H52: 34 | I52: 1 | J52: 1 | K52: 98 | L52: 강서구 염창동 259-2외 1필지 | M52: 유기종 | N52: 3664-2233 | O52: 1987-02-06 | P52: - | Q52: 영업
A53: 45 | B53: 서울특별시 | C53: 관광호텔업 | D53: 1급 | E53: 호텔 노스탈자 | F53: ㈜쎄븐정보기술 | G53: 60 | I53: 2 | K53: 62 | L53: 강서구 화곡동 1110외 1필지 | M53: 이유진 | N53: 2606-7822 | O53: 1987-03-23 | P53: - | Q53: 영업
A54: 46 | B54: 서울특별시 | C54: 관광호텔업 | D54: 1급 | E54: 리버파크 관광호텔 | F54: ㈜삼원종합주택 | G54: 68 | H54: 5 | I54: 2 | J54: 6 | K54: 81 | L54: 강서구 염창동 260외 1필지 | M54: 임재석 | N54: 3665-3000 | O54: 1989-12-07 | P54: - | Q54: 영업
A55: 47 | B55: 서울특별시 | C55: 관광호텔업 | D55: 1급 | E55: 그린월드 관광호텔 | F55: 개인 | G55: 43 | H55: 4 | J55: 5 | K55: 52 | L55: 강서구 등촌동 505-2외 5필지 | M55: 임정희 | N55: 2653-1999 | O55: 1994-11-01 | P55: - | Q55: 영업
A56: 48 | B56: 서울특별시 | C56: 관광호텔업 | D56: 2급 | E56: 에어포트 관광호텔 | F56: 개인 | G56: 31 | H56: 6 | I56: 1 | J56: 2 | K56: 40 | L56: 강서구 공항동 11-21 | M56: 김학천 | N56: 2662-1113 | O56: 1988-10-17 | P56: - | Q56: 영업
A57: 49 | B57: 서울특별시 | C57: 관광호텔업 | D57: 2급 | E57: 뉴리젠트 관광호텔 | F57: ㈜대흥레져 | G57: 27 | I57: 3 | J57: 10 | K57: 40 | L57: 강서구 화곡동 1111-7외 1필지 | M57: 박래윤 | N57: 2605-2525 | O57: 1989-10-25 | P57: - | Q57: 영업
A58: 50 | B58: 서울특별시 | C58: 관광호텔업 | D58: 미지정 | E58: 칼튼 관광호텔 | F58: 개인 | G58: 64 | K58: 64 | L58: 강서구 화곡동 1110-3 | M58: 정헌상 /김희태 /권경희 | N58: 2604-9229 | O58: 2003-02-27 | P58: - | Q58: 영업
A59: 51 | B59: 서울특별시 | C59: 관광호텔업 | D59: 미지정 | E59: 공원 관광호텔 | F59: 개인 | G59: 39 | K59: 39 | L59: 강서구 화곡동 371-21외 1필지 | M59: 김용덕 | N59: 2698-0483 | O59: 2007-04-24 | P59: - | Q59: 영업
A60: 52 | B60: 서울특별시 | C60: 관광호텔업 | D60: 미지정 | E60: 뉴티파니 관광호텔 | F60: 개인 | G60: 36 | K60: 36 | L60: 강서구 외발산동 215 | M60: 심등자 /신언택 /신연정 | N60: 2662-6118 | O60: 2003-09-03 | P60: - | Q60: 영업
A61: 53 | B61: 서울특별시 | C61: 관광호텔업 | D61: 미지정 | E61: 붐 관광호텔 | F61: 개인 | G61: 50 | K61: 50 | L61: 강서구 외발산동 282-2 | M61: 조병희 | N61: 2662-1586 | O61: 2003-03-25 | P61: - | Q61: 영업
A62: 54 | B62: 서울특별시 | C62: 관광호텔업 | D62: 미지정 | E62: 이지겔러리 관광호텔 | F62: 개인 | G62: 41 | H62: 9 | I62: 6 | K62: 56 | L62: 강서구 화곡동 1097-4 | M62: 송승호 | N62: 3662-0901 | O62: 2007-10-01 | P62: - | Q62: 영업
A63: 55 | B63: 서울특별시 | C63: 관광호텔업 | D63: 미지정 | E63: 메이트 관광호텔 | F63: 개인 | G63: 12 | H63: 43 | I63: 2 | K63: =SUM(G63:J63) -> 57 | L63: 강서구 화곡동 921-6외 5필지 | M63: 장혜영 | N63: 2605-1700 | O63: 2008-10-29 | P63: - | Q63: 영업
A64: 56 | B64: 서울특별시 | C64: 관광호텔업 | D64: 미지정 | E64: 호텔 디아망 | F64: 개인 | G64: 43 | H64: 2 | I64: 3 | K64: 48 | L64: 강서구 외발산동 280-1외 2필지 | M64: 임병칠 /정은경 | N64: 2666-0157 | O64: 2009-12-30 | P64: - | Q64: 영업
A65: 57 | B65: 서울특별시 | C65: 관광호텔업 | D65: 미지정 | E65: 호텔에스 | F65: 개인 | G65: 23 | H65: 62 | I65: 3 | K65: 88 | L65: 강서구 화곡동 918-23외 2필지 | M65: 김봉수 | N65: 2602-6002 | O65: 2011-07-20 | P65: - | Q65: 영업
A66: 58 | B66: 서울특별시 | C66: 관광호텔업 | D66: 특2급 | E66: ㈜호텔롯데롯데시티호텔김포공항 | F66: ㈜롯데호텔 | G66: 197 | K66: 197 | L66: 강서구 방화동 886외6필지 | M66: 좌상봉 | N66: 6116-1000 6116-1010 | O66: 2011.-12-05 | P66: - | Q66: 영업
A67: 59 | B67: 서울특별시 | C67: 관광호텔업 | D67: 특1 | E67: 쉐라톤서울 디큐브시티호텔 | F67: 대성산업㈜ | G67: 257 | H67: 0 | I67: 12 | J67: 0 | K67: =SUM(G67:J67) -> 269 | L67: 서울 구로구 신도림동 692 | M67: 정광우 | N67: 02)2211-2000 02)2211-2150 | O67: 2011.9.8 | Q67: 영업중
A68: 60 | B68: 서울특별시 | C68: 관광호텔업 | D68: 특2 | E68: 베스트웨스턴프리미어구로호텔 | F68: 와이씨앤티㈜ | G68: 60 | H68: 123 | I68: 16 | J68: 2 | K68: 201 | L68: 서울 구로구 구로동 1128-1 | M68: 변기식,고재오 | N68: 02)6905-9522 02)6905-9529 | O68: 2010.12.1 | Q68: 영업중
A69: 61 | B69: 서울특별시 | C69: 관광호텔업 | D69: 특2 | E69: 노보텔앰배서더독산 서울 | F69: ㈜앰배텔 | G69: 200 | H69: 10 | I69: 6 | J69: 3 | K69: 219 | L69: 서울 금천구 독산4동 1030-1 www.ambatel.com | M69: 서정호/ 이돈민 | N69: 02)3282-6432 02)3282-6435 | O69: 1997.09
A70: 62 | B70: 서울특별시 | C70: 관광호텔업 | D70: 미정 | E70: 이사벨관광호텔 | F70: 장기석 | G70: 45 | H70: 7 | I70: 0 | J70: 5 | K70: 57 | L70: 서울 금천구 독산동 150-10~11 | M70: 장기석 | N70: 02)868-6372 02)862-6739 | O70: 2004.11
A71: 63 | B71: 서울특별시 | C71: 관광호텔업 | D71: 미정 | E71: 호텔마인드 | F71: 정성우 외 1인 | G71: 33 | H71: 28 | I71: 5 | J71: 0 | K71: 66 | L71: 서울 금천구 가산동 141-1 | M71: 정성우 | N71: 02)839-1222 02)851-8053 | O71: 2006.12
A72: 64 | B72: 서울특별시 | C72: 관광호텔업 | D72: 3 | E72: 소피아관광호텔 | F72: 원정레저산업 | G72: 43 | J72: 8 | K72: 51 | L72: 도봉구 도봉로 511 | M72: 송석례 | N72: 02)900-8011 02)900-9082 | O72: 1990.8.21.
A73: 65 | B73: 서울특별시 | C73: 관광호텔업 | D73: 1 | E73: (주)경남관광호텔 | F73: ㈜경남관광호텔 | G73: 11 | H73: 69 | I73: 10 | K73: 90 | L73: 장안동 366-7번지 | M73: 김애경 | N73: 02)2247-2500 02)2247-2496 | O73: 1982-11-10
A74: 66 | B74: 서울특별시 | C74: 관광호텔업 | D74: 2 | E74: 부림관광호텔 | F74: (주)뉴부림호텔 | G74: 7 | H74: 47 | K74: =SUM(G74:J74) -> 54 | L74: 전농동 620-27번지 | M74: 이재춘 | N74: 02)962-0021 02)967-1676 | O74: 1984-02-15
A75: 67 | B75: 서울특별시 | C75: 관광호텔업 | D75: 무 | E75: 플라워 관광호텔 | G75: 42 | J75: 4 | K75: 46 | L75: 청량리동 30-6번지 | M75: 김현수 | N75: 962-8251 | O75: 2011-11-04
A76: 68 | B76: 서울특별시 | C76: 관광호텔 | D76: 특2급 | E76: 베스트웨스턴프리미어 서울가든호텔 | G76: 344 | H76: 10 | I76: 4 | J76: 4 | K76: 362
A77: 69 | B77: 서울특별시 | C77: 관광호텔 | D77: 3급 | E77: 유양호텔 | G77: 42 | J77: 2 | K77: 44
A78: 70 | B78: 서울특별시 | C78: 관광호텔 | D78: 특2급 | E78: ㈜아주호텔서교 | F78: ㈜아주호텔서교 | G78: 123 | H78: 9 | J78: 3 | K78: 135
A79: 71 | B79: 서울특별시 | C79: 관광호텔 | D79: 등급미심사 | E79: 써클호텔 | G79: 40 | K79: =SUM(G79:J79) -> 40
A80: 72 | B80: 서울특별시 | C80: 관광호텔 | D80: 특2급 | E80: ㈜롯데호텔 롯데시티호텔마포 | F80: ㈜롯데호텔 | G80: 282 | J80: 2 | K80: 284
A81: 73 | B81: 서울특별시 | C81: 관광호텔 | D81: 특2급 | E81: 스탠포드호텔코리아㈜ 스탠포드호텔서울 | F81: 스탠포드호텔코리아㈜ | G81: 189 | H81: 26 | I81: 24 | K81: 239
A82: 74 | B82: 서울특별시 | C82: 가족호텔 | D82: 미정 | E82: 까사빌 신촌 서울 | F82: ㈜H.T.C | G82: 23 | H82: 14 | I82: 2 | K82: 39
A83: 75 | B83: 서울특별시 | C83: 가족호텔 | D83: 미정 | E83: 더 엠 호텔 | G83: 8 | H83: 48 | K83: 56
A84: 76 | B84: 서울특별시 | C84: 관광호텔업 | D84: 특1등급 | E84: 그랜드힐튼호텔서울 | F84: (유)동원아이엔씨 | G84: 288 | H84: 94 | I84: 118 | J84: 3 | K84: 503 | L84: 서울특별시 서대문구 홍은동 201-1번지 | M84: 이윤기 | N84: 02-2287-8310 | O84: 1987 (2012.5.31) | Q84: 영업중
A85: 77 | B85: 서울특별시 | C85: 관광호텔업 | D85: 특1 | E85: JW메리어트호텔 서울 | F85: 센트럴관광개발㈜ | G85: 286 | H85: 174 | I85: 35 | J85: 2 | K85: =SUM(G85:J85) -> 497 | L85: 서울 서초구 반포동 19-3 jw-marriott.co.kr | M85: 성영목 | N85: 02)6282-6262 02)6282-6321 | O85: 2000.07.28
A86: 78 | B86: 서울특별시 | C86: 관광호텔업 | D86: 특1 | E86: 서울팔래스호텔 | F86: 웨스테이트디벨롭먼트㈜ | G86: 161 | H86: 103 | I86: 5 | J86: 7 | K86: 276 | L86: 서울 서초구 반포동 63-1 www.seoulpalace.co.kr | M86: 신석우 | N86: 02)532-5000 02)532-0399 | O86: 1982.09.18
A87: 79 | B87: 서울특별시 | C87: 관광호텔업 | D87: 특2 | E87: 더케이서울호텔 | F87: 더케이호텔앤리조트주식회사 | G87: 27 | H87: 188 | I87: 15 | J87: 20 | K87: 250 | L87: 서울 서초구 양재동 202 www.temf.co.kr | M87: 권용선 | N87: 02)571-8100 02)571-8106 | O87: 1990.12.30 (2012.11.16)
A88: 80 | B88: 서울특별시 | C88: 관광호텔업 | D88: 특2 | E88: 더리버사이드호텔 | F88: ㈜가우플랜 | G88: 92 | H88: 25 | I88: 3 | J88: 0 | K88: 120 | L88: 서울 서초구 잠원동 6-1 | M88: 안필호,안병균 | N88: 02)6710-1105 02)6710-1109 | O88: 1994.9.16 (2011.11.16)
A89: 81 | B89: 서울특별시 | C89: 관광호텔업 | D89: 1 | E89: 호텔센트로 | F89: ㈜센트로 | G89: 51 | H89: 33 | I89: 5 | J89: 5 | K89: 94 | L89: 서울 서초구 서초동 1594-3 www.centrohotel.co.kr | M89: 이연신 | N89: 02)3486-6000 02)3486-6022 | O89: 1999.03
A90: 82 | B90: 서울특별시 | C90: 관광호텔업 | D90: 2 | E90: 관광호텔 바빌론 | F90: ㈜관광호텔 바빌론 | G90: 79 | H90: 0 | I90: 2 | J90: 0 | K90: 81 | L90: 서울 서초구 잠원동 18-5 | M90: 김양수 | N90: 02)544-1020 02)3445-1014 | O90: 2009.4.23
A91: 83 | B91: 서울특별시 | C91: 관광호텔업 | D91: 2 | E91: 프렌드관광호텔 | F91: ㈜프렌드호텔 | G91: 51 | H91: 0 | I91: 2 | J91: 6 | K91: 59 | L91: 서울 서초구 서초동 1605-7 www.friendhotel.co.kr | M91: 서성용 | N91: 02)521-7111 02)521-7120 | O91: 1990.08
A92: 84 | B92: 서울특별시 | C92: 관광호텔업 | D92: 3 | E92: 유원메이트관광호텔 | F92: 유원메이트관광호텔㈜ | G92: 59 | H92: 8 | I92: 4 | K92: 71 | L92: 서울 서초구 서초동 1589-4 www.yuwonmatehotel.co.kr | M92: 이인원 | N92: 02)585-0561 02)585-0566 | O92: 2011.11.14
A93: 85 | B93: 서울특별시 | C93: 가족호텔업 | D93: 가족 | E93: 프로비스타 가족호텔 | F93: ㈜프로비스타 | G93: 112 | H93: 40 | I93: 18 | J93: 0 | K93: 170 | L93: 서울 서초구 서초동 1677-8 www.provista.co.kr | M93: 윤덕용 | N93: 02)597-1140 02)597-1170 | O93: 2007.01
A94: 86 | B94: 서울특별시 | C94: 관광호텔업 | D94: 2 | E94: 비젼관광호텔 | F94: 변대석 | G94: 53 | H94: 11 | I94: 0 | J94: 0 | K94: 64 | L94: 서울 성동구 도선동 2 | M94: 변대석/ 이창형 | N94: 02)2296-2245 02)2296-2254 | O94: 2005.4.29 | Q94: 영업중
A95: 87 | B95: 서울특별시 | C95: 관광호텔업 | D95: 3 | E95: 아모렉스 관광호텔 | F95: ㈜윤현디엔씨 | G95: 34 | H95: 16 | I95: 6 | J95: 0 | K95: 56 | L95: 서울 성동구 도선동 72 | M95: 현덕찬/ 윤보영 | N95: 02)2292-7634 02)922-0963 | O95: 2008.9.9 | Q95: 영업중
A96: 88 | B96: 서울특별시 | C96: 관광호텔업 | D96: 특2급 | E96: 홀리데이 인 서울 성북 | F96: 우영개발㈜ | G96: 90 | H96: 26 | I96: 11 | J96: 1 | K96: 128 | L96: 성북구 종암동3-1343 | M96: 양경선/노성범 | N96: 02)929-2000 | O96: 1990.4.7
A97: 89 | B97: 서울특별시 | C97: 관광호텔업 | D97: 2급 | E97: 브라운 관광호텔 | F97: 0 | G97: 21 | H97: 25 | I97: 3 | J97: 1 | K97: 50 | L97: 성북구 보문동4가77-2 | M97: 신학주외4인 | N97: 02)926-6601~5 | O97: 1991.4.13
A98: 90 | B98: 서울특별시 | C98: 관광호텔업 | D98: 무등급 | E98: D.H 르네상스 | F98: 0 | G98: 18 | H98: 6 | I98: 6 | J98: 0 | K98: 30 | L98: 성북구 동선동1가92-20 | M98: 김영균.이경애 | N98: 02)921-2080 | O98: 2011.12.14
A99: 91 | B99: 서울특별시 | C99: 관광호텔업 | D99: 특1 | E99: 롯데호텔월드 | F99: ㈜호텔롯데 | G99: 443 | H99: 0 | I99: 38 | J99: 1 | K99: 482 | L99: 서울 송파구 잠실동 40-1 www.lottehotelworld.com | M99: 송용덕 | N99: 02)419-7000 02)411-7153 | O99: 1988.08
A100: 92 | B100: 서울특별시 | C100: 관광호텔업 | D100: 1 | E100: 레이크관광호텔 | G100: 90 | H100: 0 | I100: 4 | J100: 0 | K100: 94 | L100: 서울 송파구 석촌동 158 www.hotellake.co.kr | M100: 송관석 | N100: 02)422-1001 02)422-0073 | O100: 2002.12
A101: 93 | B101: 서울특별시 | C101: 관광호텔업 | D101: 1 | E101: 캘리포니아관광호텔 | G101: 114 | H101: 0 | I101: 16 | J101: 0 | K101: 130 | L101: 서울 송파구 가락동 98-6 www. californiahotel.co.kr | M101: 오용석 | N101: 02)401-4763 02)431-1661 | O101: 2003.10
A102: 94 | B102: 서울특별시 | C102: 관광호텔업 | D102: 2 | E102: 가락관광호텔 | G102: 53 | H102: 0 | I102: 5 | J102: 8 | K102: 66 | L102: 서울 송파구 가락동 98-5 www.hotelkarak.com | M102: 이도형외1 | N102: 02)400-6641 02)401-2479 | O102: 1990.03
A103: 95 | B103: 서울특별시 | C103: 관광호텔업 | D103: 2 | E103: 잠실관광호텔 | G103: 42 | H103: 2 | I103: 1 | J103: 8 | K103: 53 | L103: 서울 송파구 잠실동 250-9 www.js hotel.co.kr | M103: 이재영 | N103: 02)421-2761 02)417-6836 | O103: 1991.05
A104: 96 | B104: 서울특별시 | C104: 관광호텔업 | D104: 2 | E104: 파로스 관광호텔 | G104: 35 | H104: 15 | I104: 2 | K104: 52 | L104: 서울시 송파구 잠실동 180 | M104: 서정태 | N104: 02)413-1984 02)417-2700 | O104: 2012.12
A105: 97 | B105: 서울특별시 | C105: 관광호텔 | D105: 1급 | E105: 여의도 관광호텔 | F105: 용찬산업주식회사 | G105: 103 | I105: 1 | J105: 3 | K105: 107 | L105: 영등포구 은행로 62 (여의도동) | M105: 오기창 외 1 명 | N105: 3775-2767 | O105: 1975-03-18
A106: 98 | B106: 서울특별시 | C106: 관광호텔 | D106: 2급 | E106: 도도관광호텔 | F106: 주식회사 도도관광호텔 | G106: 40 | H106: 9 | I106: 6 | K106: 55 | L106: 영등포구 버드나루로 23 (영등포동2가) | M106: 김창호 | N106: 2672-3535 | O106: 1996-10-21
A107: 99 | B107: 서울특별시 | C107: 관광호텔 | D107: 특2급 | E107: 호텔 렉싱턴 | F107: 주식회사 이랜드파크 | G107: 151 | H107: 71 | I107: 6 | J107: 7 | K107: 235 | L107: 영등포구 국회대로76길 16 (여의도동) | M107: 강성민 | N107: 6670-7000 | O107: 2001-02-19
A108: 100 | B108: 서울특별시 | C108: 가족호텔 | D108: 특2급 | E108: 메리엇 이그제큐티브 아파트먼트 서울 | F108: 씨앤에이치호스피탈리티 주식회사 | G108: 91 | J108: 12 | K108: 103 | L108: 영등포구 여의대로 8 (여의도동) | M108: 김양수 외 1 명 | N108: 2090-8000 | O108: 2007-08-16
A109: 101 | B109: 서울특별시 | C109: 관광호텔 | D109: 특2급 | E109: 코트야드 바이 메리어트 서울 타임스퀘어 | F109: 주식회사 경방 | G109: 273 | H109: 10 | K109: 283 | L109: 영등포구 영중로 15 (영등포동4가) | M109: 김담 | N109: 2638-3091 | O109: 2009-09-21
A110: 102 | B110: 서울특별시 | C110: 관광호텔 | D110: 2급 | E110: R 호텔 | F110: 엠오에이치개발 ㈜ | G110: 70 | H110: 16 | K110: 86 | L110: 영등포구 경인로108길 14 (영등포동1가) | M110: 김봉수 | N110: 2675-7436 | O110: 2009-09-21
A111: 103 | B111: 서울특별시 | C111: 관광호텔 | D111: 미지정 | E111: 콘래드 서울 호텔 | F111: 에스아이에프씨 호텔디벨롭먼트 유한회사 | G111: 255 | H111: 129 | I111: 50 | K111: 434 | L111: 영등포구 국제금융로 10 (여의도동) | M111: 존에스 휘테커 | N111: 6137-7000 | O111: 2012-10-23
A112: 104 | B112: 서울특별시 | C112: 관광호텔업 | D112: 1급 | E112: (주)해밀톤호텔 | F112: 해밀톤관광(주) | G112: 79 | H112: 79 | I112: 7 | J112: 1 | K112: =SUM(G112:J112) -> 166 | L112: 서울특별시 용산구 이태원동 119-24,25,108-9,123-10~15,116-1,116-5,112-7,112-15 | M112: 이상용 | N112: 02-6393-1303 | O112: 1975-07-29 | Q112: 영업중
A113: 105 | B113: 서울특별시 | C113: 관광호텔업 | D113: 특1급 | E113: 서울미라마(유)그랜드하얏트서울 | F113: 서울미라마(유) | G113: 0 | H113: 557 | I113: 50 | K113: 607 | L113: 서울특별시 용산구 한남동 747-7번지 | M113: 피터월쇼 | N113: 02-799-8105 | O113: 1978-05-15 | Q113: 영업중
A114: 106 | B114: 서울특별시 | C114: 관광호텔업 | D114: 1급 | E114: (주)크라운호텔 | F114: 주)크라운호텔 | G114: 150 | H114: 29 | I114: 8 | J114: 4 | K114: =SUM(G114:J114) -> 191 | L114: 서울특별시 용산구 이태원동 36-69, 34-159, 44-64 | M114: 김관식 | N114: 795-8224~9 | O114: 1980-05-20 | Q114: 영업중
A115: 107 | B115: 서울특별시 | C115: 관광호텔업 | D115: 1급 | E115: 아이피부티크호텔(IP Boutique hotel) | F115: 아이피부티크호텔 | G115: 112 | H115: 14 | I115: 6 | J115: 1 | K115: 133 | L115: 서울특별시 용산구 한남동 737-32번지 | M115: 신재범 | N115: 3702-8072 | O115: 1988-09-28 | Q115: 영업중
A116: 108 | B116: 서울특별시 | C116: 관광호텔업 | D116: 2급 | E116: 가야관광호텔 | G116: 37 | H116: 6 | J116: 8 | K116: =SUM(G116:J116) -> 51 | L116: 서울특별시 용산구 갈월동 98-11번지 | M116: 문석용 | N116: 798-5157 | O116: 1990-01-16 | Q116: 영업중
A117: 109 | B117: 서울특별시 | C117: 관광호텔업 | D117: 특2급 | E117: (주)호텔캐피탈 | F117: (주)호텔캐피탈 | G117: 208 | H117: 69 | I117: 6 | J117: 3 | K117: 286 | L117: 서울특별시 용산구 이태원동 22-76번지 | M117: 이익현 | N117: 6399-2000 | O117: 1998-08-22 | Q117: 영업중
A118: 110 | B118: 서울특별시 | C118: 관광호텔업 | D118: 2 | E118: 프라임인서울호텔 | F118: ㈜프라임인서울호텔 | G118: 42 | H118: 16 | I118: 6 | J118: 0 | K118: 64 | L118: 불광동 302-13 | M118: 한혜주외1 | N118: 3157-8000/358-7200 | O118: 89.10.19
A119: 111 | B119: 서울특별시 | C119: 관광호텔업 | D119: 3 | E119: 벨라지오관광호텔 | G119: 28 | H119: 12 | I119: 12 | J119: 0 | K119: 52 | L119: 불광동 285-14 | M119: 김광민외1 | N119: 354-0990/354-5990 | O119: 05.11.15
A120: 112 | B120: 서울특별시 | C120: 관광호텔업 | D120: 특1급 | E120: 호텔 롯데 | F120: (주)호텔롯데 | G120: 486 | H120: 567 | I120: 96 | J120: 2 | K120: 1,151 | L120: 소공동 1 | M120: 송 용 덕 | N120: 759-7115 (773-4839) | O120: 1987-08-11
A121: 113 | B121: 서울특별시 | C121: 관광호텔업 | D121: 특1급 | E121: 서울 신라호텔 | F121: (주)호텔신라 | G121: 88 | H121: 340 | I121: 31 | J121: 2 | K121: =SUM(G121:J121) -> 461 | L121: 장충동2가 202 | M121: 이 부 진 | N121: 2230-3281 (2230-3795) | O121: 1978-12-23
A122: 114 | B122: 서울특별시 | C122: 관광호텔업 | D122: 특1급 | E122: 밀레니엄서울 힐튼 | F122: (주)씨디엘호텔코리아 | G122: 329 | H122: 318 | I122: 30 | J122: 2 | K122: 679 | L122: 남대문5가 395 | M122: 웡 홍 렌 | N122: 317-3306 (317-3309) | O122: 1989-05-04
A123: 115 | B123: 서울특별시 | C123: 관광호텔업 | D123: 특1급 | E123: 플라자호텔 | F123: 한화호텔앤드리조트(주) | G123: 33 | H123: 310 | I123: 72 | K123: 415 | L123: 태평로2가 23 | M123: 홍 원 기 | N123: 310-7172 (310-7151) | O123: 1976-09-01
A124: 116 | B124: 서울특별시 | C124: 관광호텔업 | D124: 특1급 | E124: 더웨스틴조선서울 | F124: (주)조선호텔 | G124: 255 | H124: 161 | I124: 37 | K124: 453 | L124: 소공동 87-1 | M124: 성 영 목 | N124: 317-0081 (317-0230) | O124: 1970-06-05
A125: 117 | B125: 서울특별시 | C125: 관광호텔업 | D125: 특1급 | E125: 그랜드앰배서더서울 | F125: (주)서한사 | G125: 94 | H125: 297 | I125: 12 | J125: 6 | K125: 409 | L125: 장충2가 186-54 | M125: 이 승 소 (서종호,이재경) | N125: 2270-3107 (2270-3954) | O125: 1975-12-02
A126: 118 | B126: 서울특별시 | C126: 관광호텔업 | D126: 특2급 | E126: 서울 로얄호텔 | F126: 대한관광개발(주) | G126: 106 | H126: 179 | I126: 16 | J126: 3 | K126: 304 | L126: 명동1가 6-3 | M126: 장 성 천 | N126: 771-4500 (771-4538) | O126: 1987-09-07
A127: 119 | B127: 서울특별시 | C127: 관광호텔업 | D127: 특2급 | E127: 호텔프레지던트 | F127: 백남관광㈜ | G127: 207 | H127: 56 | I127: 32 | J127: 8 | K127: =SUM(G127:J127) -> 303 | L127: 을지로1가188-3 | M127: 서 정 배 | N127: 753-3131 (752-3086) | O127: 1969-03-28
A128: 120 | B128: 서울특별시 | C128: 관광호텔업 | D128: 특2급 | E128: 코리아나호텔 | F128: (주)코리아나호텔 | G128: 177 | H128: 154 | I128: 3 | J128: 3 | K128: 337 | L128: 태평로1가 61-1 | M128: 방 용 훈 | N128: 2171-7810 (730-9027) | O128: 1987-07-08
A129: 121 | B129: 서울특별시 | C129: 관광호텔업 | D129: 특2급 | E129: 세종호텔서울 | F129: 세종투자개발㈜ | G129: 116 | H129: 177 | I129: 9 | J129: 3 | K129: 305 | L129: 충무로2가 61-3 | M129: 최 승 구 | N129: 3705-9171 (776-4009) | O129: 1973-12-24
A130: 122 | B130: 서울특별시 | C130: 관광호텔업 | D130: 특2급 | E130: 퍼시픽호텔 | F130: (주)퍼시픽호텔 | G130: 134 | H130: 36 | I130: 9 | J130: 2 | K130: 181 | L130: 남산2가 31-1 | M130: 이 종 철 | N130: 777-7811 (774-3279) | O130: 1975-02-14
A131: 123 | B131: 서울특별시 | C131: 관광호텔업 | D131: 특2급 | E131: 호텔 PJ | F131: 오일관광(주)풍전호텔 | G131: 43 | H131: 208 | I131: 20 | K131: 271 | L131: 인현2가 73-1 | M131: 이 준 정 | N131: 2266-3186 (2274-5734) | O131: 1970-07-01
A132: 124 | B132: 서울특별시 | C132: 관광호텔업 | D132: 특2급 | E132: 베스트웨스턴프리미어호텔국도 | F132: 국도관광개발(주) | G132: 275 | H132: 15 | I132: 5 | K132: 295 | L132: 을지로4가 310 | M132: 이 교 상 | N132: 2266-1446 (6466-1018) | O132: 2007-04-03
A133: 125 | B133: 서울특별시 | C133: 가족호텔업 | D133: 가족호텔 | E133: 반얀트리 클럽앤호텔 서울 | F133: 에이블현대호텔앤리조트(주) | G133: 30 | I133: 20 | K133: 50 | L133: 장충동2가 산5-5 | M133: 장 세 용 (장폴혁) | N133: 2250-8046 (2250-8043) | O133: 1987-07-08
A134: 126 | B134: 서울특별시 | C134: 가족호텔업 | D134: 가족호텔 | E134: 프레이저플레이스 센트럴 서울 | F134: 디에스디엘 | G134: 240 | K134: 240 | L134: 순화동 214 외 1 | M134: 김 정 수 | N134: 2220-8210 (2220-8222) | O134: 2008-10-22
A135: 127 | B135: 서울특별시 | C135: 가족호텔업 | D135: 가족호텔 | E135: 이스트게이트 타워호텔 | F135: (주) 비에이치 호텔 매니지 먼트 | G135: 168 | H135: 96 | I135: 14 | J135: 2 | K135: 280 | L135: 을지로6가 17-2 | M135: 윤 상 률 | N135: 3407-0700 (3407-0901) | O135: 2009-05-22
A136: 128 | B136: 서울특별시 | C136: 관광호텔업 | D136: 1급 | E136: 서울렉스호텔 | F136: (주)남강건설회관 | G136: 80 | H136: 6 | I136: 3 | J136: 4 | K136: 93 | L136: 회현동1가 65 | M136: 은 상 호 | N136: 752-8191 (754-1669) | O136: 1970-01-12
A137: 129 | B137: 서울특별시 | C137: 관광호텔업 | D137: 1급 | E137: 뉴국제호텔 | F137: (유)뉴국제호텔 | G137: 100 | H137: 33 | I137: 7 | J137: 2 | K137: 142 | L137: 태평로1가 25-3 | M137: 전 무 웅 | N137: 732-0161 (732-1777) | O137: 1977-02-28
A138: 130 | B138: 서울특별시 | C138: 관광호텔업 | D138: 1급 | E138: 베스트웨스턴 뉴서울호텔 | F138: (주)뉴서울호텔 | G138: 150 | H138: 15 | I138: 3 | J138: 1 | K138: 169 | L138: 태평로1가 29-1 | M138: 임 종 빈, 이화일 | N138: 3701-0539 (739-1538) | O138: 1969-10-15
A139: 131 | B139: 서울특별시 | C139: 관광호텔업 | D139: 1급 | E139: 사보이호텔 | F139: (주)사보이호텔 | G139: 85 | H139: 15 | I139: 5 | K139: 105 | L139: 충무로1가 23-1 | M139: 조 현 식 | N139: 778-5555 (776-3430) | O139: 1963-06-23
A140: 132 | B140: 서울특별시 | C140: 관광호텔업 | D140: 1급 | E140: 프린스호텔 | F140: (주)서울프린스호텔 | G140: 82 | H140: 14 | I140: 2 | J140: 2 | K140: 100 | L140: 남산동2가 1-1 | M140: 남 상 만 | N140: 752-7114 (752-7115) | O140: 1969-04-15
A141: 133 | B141: 서울특별시 | C141: 관광호텔업 | D141: 1급 | E141: 메트로호텔 | F141: (주)메트로호텔 | G141: 45 | H141: 25 | I141: 5 | K141: 75 | L141: 을지로2가 199-33 | M141: 이 근 | N141: 2176-3121 (753-7770) | O141: 1963-06-26
A142: 134 | B142: 서울특별시 | C142: 관광호텔업 | D142: 1급 | E142: 이비스앰배서더 명동 | F142: (주)앰배스텔 | G142: 168 | H142: 96 | I142: 14 | J142: 2 | K142: 280 | L142: 명동1가 59-5 | M142: 주 명 건 | N142: 6361-8011 (6361-8003) | O142: 2007-07-03
A143: 135 | B143: 서울특별시 | C143: 관광호텔업 | D143: 1급 | E143: 아스토리아호텔 | F143: 동곡상사(주) | G143: 71 | H143: 8 | J143: 1 | K143: 80 | L143: 남학동 13-2 | M143: 이 경 수 | N143: 2268-7111 (2267-7273) | O143: 1960-06-10
A144: 136 | B144: 서울특별시 | C144: 관광호텔업 | D144: 1급 | E144: 호텔아카시아 | F144: (주)인세인 | G144: 66 | H144: 40 | I144: 2 | K144: 108 | L144: 을지로5가 99 | M144: 손 형 석 | N144: 2277-4917 (2277-4730) | O144: 2009-09-22
A145: 137 | B145: 서울특별시 | C145: 관광호텔업 | D145: 3급 | E145: 뉴오리엔탈 관광호텔 | F145: (주)뉴오리엔탈관광호텔 | G145: 16 | H145: 39 | I145: 6 | J145: 4 | K145: 65 | L145: 회현3가 10 | M145: 송 두 섭 | N145: 753-0701 (755-9346) | O145: 1987-07-10
A146: 138 | B146: 서울특별시 | C146: 관광호텔업 | D146: 3급 | E146: 호텔 파레스 | G146: 30 | H146: 13 | J146: 9 | K146: 52 | L146: 회현동1가 92-6 | M146: 이 순 희 | N146: 777-7731 (776-8759) | O146: 2006-09-15
A147: 139 | B147: 서울특별시 | C147: 관광호텔업 | D147: - | E147: 호텔 스카이파크Ⅲ | F147: (주)아이큐웰 | G147: 133 | I147: 3 | K147: 136 | L147: 충무로2가 62-9 | M147: 양 현 정 | N147: 6900-9390 (6442-1260) | O147: 2011-09-28
A148: 140 | B148: 서울특별시 | C148: 관광호텔업 | D148: - | E148: 라마다호텔동대문 | F148: (주)폴앤파트너스 | H148: 144 | I148: 10 | K148: 154 | L148: 을지로5가 275-3 | M148: 신 상 범 | N148: 2276-3500 (2276-3509) | O148: 2012-01-19
A149: 141 | B149: 서울특별시 | C149: 관광호텔업 | D149: - | E149: 호텔마누 | F149: 남풍산업(주) | G149: 10 | H149: 62 | I149: 18 | K149: 90 | L149: 남대문로5가 84-16 | M149: 신 영 철 | N149: 757-2263~5 (777-3977) | O149: 2012-11-30
A150: 142 | B150: 서울특별시 | C150: 관광호텔업 | D150: - | E150: 나인트리호텔명동 | F150: 파르나스호텔(주) | G150: 33 | H150: 100 | I150: 11 | K150: 144 | L150: 충무로2가 63-2 | M150: 송홍섭 | N150: 750-0970 | O150: 2012-12-06
A151: 143 | B151: 서울특별시 | C151: 관광호텔업 | D151: 3 | E151: 메이관광호텔 | G151: 28 | I151: 21 | K151: 49 | L151: 상봉동 89-3번지 | M151: 김창수 | N151: 493-1100 /493-2200 | O151: 2004-08-13
A152: 144 | B152: 서울특별시 | C152: 관광호텔업 | D152: 미지정 | E152: 더홀릭 관광호텔 | G152: 43 | I152: 26 | K152: 69 | L152: 상봉동 90-3번지 | M152: 강현구 외 1 명 | N152: 439-0082 /439-0233 | O152: 2011-12-20 | P152: 12,800,000,000
A153: 145 | B153: 서울특별시 | C153: 관광호텔업 | D153: 1 | E153: 호텔크라운인사동 | F153: ㈜종로크라운 | G153: 52 | H153: 8 | I153: 16 | J153: 4 | K153: 80 | L153: 종로구 낙원동 25 www.hotelcrown.com | M153: 김관식/ 김웅봉 | N153: 02)3676-8000 02)3676-1551 | O153: 1980.04.01
A154: 146 | B154: 서울특별시 | C154: 관광호텔업 | D154: 2 | E154: 동대문관광호텔 | F154: ㈜송일기업 | G154: 17 | H154: 4 | I154: 25 | J154: 6 | K154: 52 | L154: 종로구 창신동 444-14 | M154: 김건욱/ 김건철 | N154: 02)741-7811 02)744-1274 | O154: 1968.05.01
A155: 147 | B155: 서울특별시 | C155: 관광호텔업 | D155: 2 | E155: 센츄럴관광호텔 | F155: ㈜센츄럴 | G155: 33 | H155: 12 | I155: 25 | J155: 8 | K155: 78 | L155: 종로구 장사동 227-1 | M155: 이성숙/ 허병철 | N155: 02)6365-6500 02)2265-6139 | O155: 1969.05.01
A156: 148 | B156: 서울특별시 | C156: 관광호텔업 | D156: 2 | E156: 동화킴스관광호텔 | F156: 서석해 | G156: 26 | H156: 3 | I156: 14 | J156: 8 | K156: 51 | L156: 종로구 평창동 66-50 www.kimshotel.co.kr | M156: 서석해/ 곽원근 | N156: 02)379-0520 02)379-7734 | O156: 1990.04.02
A157: 149 | B157: 서울특별시 | C157: 관광호텔업 | D157: 3 | E157: 삼호관광호텔 | F157: 임영현 | G157: 20 | H157: 0 | I157: 23 | J157: 7 | K157: 50 | L157: 종로구 창신동 436-73 | M157: 임영현/ 조용슬 | N157: 02)741-7080 02)743-5981 | O157: 1970.05.01
A158: 150 | B158: 서울특별시 | C158: 관광호텔업 | D158: 3 | E158: 서울YMCA관광호텔 | F158: (재)서울기독교청년회 유지재단 | G158: 12 | H158: 17 | I158: 1 | J158: 0 | K158: 30 | L158: 종로구 종로2가 9 www.ymca.or.kr/hotel | M158: 조기흥/ 김원호 | N158: 02)734-6884 02)734-8003 | O158: 1967.04.03
A159: 151 | B159: 서울특별시 | C159: 관광호텔업 | D159: 미정 | E159: 써튼호텔 | F159: ㈜써튼호텔 | G159: 106 | H159: 53 | I159: 4 | J159: 0 | K159: 163 | L159: 종로구 관수동 125-1 www.sutton.co.kr | M159: 이경훈 | N159: 02)734-6884 02)734-8003 | O159: 2012.04.04
A160: 152 | B160: 서울특별시 | C160: 관광호텔업 | D160: 미정 | E160: 호텔 아벤트리종로 | F160: ㈜아벤트리종로 | G160: 118 | H160: 34 | I160: 3 | K160: 155 | L160: 종로구 견지동 65-1 www.aventreehotel.com | M160: 김종만 | N160: 02)2139-8223 | O160: 2012.09.28
A161: 153 | B161: 서울특별시 | C161: 관광호텔업 | D161: 미정 | E161: 센터마크호텔 | F161: ㈜센터마크호텔 | G161: 65 | H161: 180 | I161: 5 | K161: =SUM(G161:J161) -> 250 | L161: 종로구 관훈동 198-42 www.centermarkhotel.com | M161: 권희석/ 신언식 | N161: 02)2127-1903 | O161: 2012.11.09
A162: 154 | B162: 서울특별시 | C162: 관광호텔업 | D162: 특1 | E162: 워커힐호텔 | F162: ㈜SK네트웍스워커힐 | G162: 393 | H162: 395 | I162: 136 | J162: 6 | K162: 930 | L162: 광진구 워커힐로 177(광장동) | M162: 이창규 | N162: 02-455-5000 | O162: 1963.08.22
A163: 155 | B163: 서울특별시 | C163: 관광호텔업 | D163: 1급 | E163: 동서울관광호텔 | F163: ㈜동서울관광호텔 | G163: 75 | H163: 36 | I163: 2 | J163: 2 | K163: 115 | L163: 광진구 구의강변로 38(구의동) | M163: 신현백 | N163: 02-455-1100 | O163: 1991.04.13
A164: 156 | B164: 서울특별시 | C164: 관광호텔업 | D164: 1급 | E164: 한강관광호텔 | F164: ㈜한강관광호텔 | G164: 49 | H164: 26 | I164: 12 | J164: 29 | K164: 116 | L164: 광진구 아차산로78길 147(광장동) | M164: 정제욱 | N164: 02-453-5131 | O164: 1979.10.23
A165: 157 | B165: 서울특별시 | C165: 관광호텔업 | D165: 미정 | E165: 더클래식500펜타즈호텔 | F165: 학교법인 건국대학교 | G165: 6 | H165: 6 | I165: 72 | K165: 84 | L165: 광진구 능동로 92(능동) | M165: 김경희 | N165: 02-2218-5555 | O165: 2012.05.09
A166: 158 | B166: 서울특별시 | C166: 가족호텔업 | E166: 프레이저스위츠서울 | F166: 금보개발 | G166: 17 | H166: 107 | I166: 89 | J166: 0 | K166: 213 | L166: 서울시 종로구 낙원동 272 www.frasersuiteseoul.co.kr | M166: 정원석/ 엄성민 | N166: 02)6262-8282 02)6262-8009 | O166: 2007. 09
A167: 159 | B167: 서울특별시 | C167: 호스텔업 | E167: Stay in GAM | G167: 15 | K167: 15 | L167: 종로구 와룡동 21 | M167: 김서구 | N167: 02)764-2052 | O167: 2012.11.28
A168: 160 | B168: 서울특별시 | C168: 관광호텔업 | D168: 1급 | E168: 노블레스 관광호텔 | F168: ㈜노블레스관광호텔 | G168: 70 | H168: 1 | I168: 12 | J168: 2 | K168: 85 | L168: 노원구 상계6동 711-9 | M168: 홍광표/이용휘 | N168: 02)935-7161 | O168: 2001.2.1
A169: 161 | B169: 서울특별시 | C169: 관광호텔업 | D169: 3급 | E169: 뉴천지호텔 | F169: 강종숙 | G169: 35 | H169: 14 | I169: 1 | K169: 50 | L169: 중구 을지로5가 133-1 | M169: 강종숙 | N169: 02)2265-6131 | O169: 1962.4.
A170: 소계 | B170: 부산광역시 | G170: =SUM(G171:G223) -> 3,818 | H170: =SUM(H171:H223) -> 2,338 | I170: 440 | J170: 386 | K170: 6,982 | P170: =SUM(P171:P219) -> 31,498,350,000
A171: 1 | B171: 부산광역시 | C171: 관광호텔업 | D171: 특2 | E171: 코모도호텔 | F171: ㈜코모도호텔 | G171: 80 | H171: 171 | I171: 57 | J171: 6 | K171: =SUM(G171:J171) -> 314 | L171: 부산광역시 중구 부산광역시 중구로 151(영주동) | M171: 이영숙 외 1명 | N171: 051-466-9101 | O171: 1974-06-13
A172: 2 | B172: 부산광역시 | C172: 관광호텔업 | D172: 1 | E172: 부산관광호텔 | F172: ㈜부산관광호텔 | G172: 247 | I172: 20 | J172: 8 | K172: =SUM(G172:J172) -> 275 | L172: 부산광역시 중구 광복로97번길 23(동광동2가) | M172: 최재원 | N172: 051-241-1051 | O172: 1982-12-10
A173: 3 | B173: 부산광역시 | C173: 관광호텔업 | D173: 1 | E173: 피닉스호텔 | F173: ㈜신성산업 | G173: 95 | I173: 1 | J173: 11 | K173: 107 | L173: 부산광역시 중구 구덕로 54-1(남포동5가) | M173: 이근후 | N173: 051-245-8061 | O173: 1976-12-04
A174: 4 | B174: 부산광역시 | C174: 관광호텔업 | D174: 1 | E174: 로얄관광호텔 | F174: ㈜로얄관광호텔 | G174: 100 | K174: 100 | L174: 부산광역시 중구 광복로67번길 8(광복동2가) | M174: 김기철 | N174: 051-241-1051 | O174: 1982-12-10 | Q174: 휴업 (2006.1.1~2013.12.31)
A175: 5 | B175: 부산광역시 | C175: 관광호텔업 | D175: 2 | E175: 힐사이드 | F175: 신현두(개인) | G175: 41 | J175: 4 | K175: 45 | L175: 부산광역시 중구 부산광역시 중구로 160(영주동) | M175: 신현두 | N175: 051-464-0567 | O175: 1988-03-09
A176: 6 | B176: 부산광역시 | C176: 관광호텔업 | D176: 2 | E176: 호텔노아 | F176: ㈜경원건설 | G176: 20 | I176: 2 | J176: 8 | K176: 30 | L176: 부산광역시 중구 자갈치로47번길 3-1(남포동5가) | M176: 이수천 외 1명 | N176: 051-246-4361 | O176: 1989-01-11 | Q176: 휴업 (2012.9.28~2013.4.30)
A177: 7 | B177: 부산광역시 | C177: 관광호텔업 | D177: 3 | E177: 타워힐관광호텔 | F177: ㈜경화기업 | G177: 88 | I177: 3 | J177: 8 | K177: 99 | L177: 부산광역시 중구 백산길 20(동광동3가) | M177: 최용태 | N177: 051-241-5151 | O177: 1978-05-15 | Q177: 휴업 (2012.4.27~2013.4.26)
A178: 8 | B178: 부산광역시 | C178: 관광호텔업 | D178: 3 | E178: 토요코인부산역II | F178: 토요코인코리아 | G178: 489 | H178: 2 | K178: =SUM(G178:J178) -> 491 | L178: 부산광역시 중구 중앙대로 125(대창동1가) | M178: 니시다 노리마사 | N178: 051-442-1045 | O178: 2008-04-16
A179: 9 | B179: 부산광역시 | C179: 관광호텔업 | D179: 2 | E179: 부산비치관광호텔 | F179: 부산비치관광호텔 | G179: 29 | I179: 5 | K179: 34 | L179: 부산광역시 서구 남부민동 523-44 | M179: 박해옥, 장영현 | N179: 051-231-0750/ 051-231-0752 | O179: 2007-02-15
A180: 10 | B180: 부산광역시 | C180: 관광호텔업 | D180: 2 | E180: 송도비치관광호텔 | F180: (주)송도 | G180: 40 | J180: 4 | K180: 44 | L180: 부산광역시 서구 암남동 541-6 | M180: 김종원, 손창섭 | N180: 051-254-2000/ 051-254-5093 | O180: 1991-07-04
A181: 11 | B181: 부산광역시 | C181: 관광호텔업 | D181: 3 | E181: 유엔관광호텔 | F181: (주)YJ개발 | G181: 48 | J181: 12 | K181: 60 | L181: 부산광역시 서구 암남동 335-5 | M181: 심명보 | N181: 051-245-8880/ 051-245-8868 | O181: 1982-03-09
A182: 12 | B182: 부산광역시 | C182: 관광호텔업 | D182: 2 | E182: ㈜삼양관광프라자호텔 | F182: ㈜삼양관광프라자 | G182: 61 | K182: =SUM(G182:J182) -> 61 | L182: 부산광역시 동구 초량동 1213-14 | M182: 임우재 | N182: 051-463-5011 | O182: 1972-06-28
A183: 13 | B183: 부산광역시 | C183: 관광호텔업 | D183: 1 | E183: 부산아리랑관광호텔 | F183: 개인(김종한) | G183: 100 | I183: 7 | J183: 13 | K183: 120 | L183: 부산광역시 동구 초량동 1204-1 | M183: 김종한 | N183: 051-463-5001 | O183: 1977-04-25
A184: 14 | B184: 부산광역시 | C184: 관광호텔업 | D184: 1 | E184: 국제관광호텔 | F184: ㈜국제관광호텔 | G184: 71 | H184: 46 | I184: 3 | J184: 14 | K184: 134 | L184: 부산광역시 동구 범일동 830-62 | M184: 김수진 | N184: 051-642-1330 | O184: 1981-11-21
A185: 15 | B185: 부산광역시 | C185: 관광호텔업 | D185: 2 | E185: 프라임관광호텔 | F185: ㈜보람상조개발 | G185: 32 | I185: 4 | J185: 12 | K185: 48 | L185: 부산광역시 동구 수정동 1-62 | M185: 김미자외 1인 | N185: 051-465-4011 | O185: 1982-11-02
A186: 16 | B186: 부산광역시 | C186: 관광호텔업 | D186: 3 | E186: 뉴라이프관광호텔 | F186: 신주언(개인) | G186: 40 | K186: =SUM(G186:J186) -> 40 | L186: 부산광역시 동구 범일동 830-172 | M186: 신주언 | N186: 051-634-3001 | O186: 1986-11-17
A187: 17 | B187: 부산광역시 | C187: 관광호텔업 | D187: 2 | E187: 광장관광호텔 | F187: 취위흔(개인) | G187: 56 | K187: 56 | L187: 부산광역시 동구 초량동 1200-17 | M187: 최위흔 | N187: 051-442-3480 | O187: 1988-05-06
A188: 18 | B188: 부산광역시 | C188: 관광호텔업 | D188: 3 | E188: 코리아시티관광호텔 | F188: 김진호(개인) | G188: 5 | H188: 30 | J188: 5 | K188: 40 | L188: 부산광역시 동구 범일동 830-15 | M188: 김진호 | N188: 051-643-7788 | O188: 1988-09-13
A189: 19 | B189: 부산광역시 | C189: 관광호텔업 | D189: 3 | E189: 토요코인부산역Ⅰ | F189: 토요코인코리아주식회사 | G189: 220 | H189: 139 | K189: 359 | L189: 부산광역시 동구 초량동 1203-15 | M189: 니시다노리마사 | N189: 051-466-1045 | O189: 2008-12-02
A190: 20 | B190: 부산광역시 | C190: 관광호텔업 | D190: 특1 | E190: ㈜부산롯데호텔 | F190: ㈜부산롯데호텔 | G190: 450 | H190: 186 | I190: 46 | J190: 0 | K190: =SUM(G190:J190) -> 682 | L190: 부산광역시 부산진구 부전동 503-15 | M190: 송용덕 | N190: 051-810-5600/ 051-810-5609 | O190: 1998-03-09
A191: 21 | B191: 부산광역시 | C191: 관광호텔업 | D191: 3 | E191: 토요코인 부산서면 | F191: ㈜티비원 김종우토요코인 코리아㈜ | G191: 165 | H191: 140 | I191: 3 | J191: 0 | K191: 308 | L191: 부산광역시 부산진구 전포동 666-8 | M191: 김종우, 니시다노리마사 | N191: 051-638-1045/ 051-638-1046 | O191: 2010-03-23
A192: 22 | B192: 부산광역시 | C192: 관광호텔업 | D192: 특1 | E192: (주)호텔농심 | F192: (주)호텔농심 | G192: 192 | H192: 13 | I192: 7 | J192: 28 | K192: 240 | L192: 부산광역시 동래구 금강공원로 20번길 23 | M192: 존반타 | N192: 051-550-2100/ 051-550-2525 | O192: 1963-04-22 (2012.3.23 대표자변경) | P192: 31,498,350,000
A193: 23 | B193: 부산광역시 | C193: 관광호텔업 | D193: 2 | E193: (주)동일관광호텔 | F193: (주)동일관광호텔 | G193: 32 | H193: 0 | I193: 0 | J193: 0 | K193: 32 | L193: 부산광역시 동래구 온천장로 71 | M193: 장재헌 | N193: 051-316-5341/ 051-316-5341 | O193: 1988-08-18 | Q193: 휴업 (2012.8.10~2013.2.28)
A194: 24 | B194: 부산광역시 | C194: 관광호텔업 | D194: 2 | E194: 동방관광호텔 | F194: 김상근(개인) | G194: 24 | H194: 0 | I194: 0 | J194: 16 | K194: =SUM(G194:J194) -> 40 | L194: 부산광역시 동래구 금강로 110 | M194: 김상근 | N194: 051-552-9511/ 051-516-0506 | O194: 1987-03-07
A195: 25 | B195: 부산광역시 | C195: 관광호텔업 | D195: 3 | E195: 문화온천관광호텔 | F195: 손성우(개인) | G195: 40 | H195: 0 | I195: 0 | J195: 0 | K195: 40 | L195: 부산광역시 동래구 금강로 129 | M195: 손성우 | N195: 051-558-5505/ 051-558-5505 | O195: 1989-05-16
A196: 26 | B196: 부산광역시 | C196: 관광호텔업 | D196: 3 | E196: 리오관광호텔 | F196: (주)블루 | G196: 38 | H196: 0 | I196: 0 | J196: 2 | K196: 40 | L196: 부산광역시 남구 대연동 1764-7번지 | M196: 설미영 | N196: 051-639-5455 | O196: 1999-04-19
A197: 27 | B197: 부산광역시 | C197: 관광호텔업 | D197: 특1 | E197: 조선호텔부산 | F197: ㈜조선호텔 | H197: 273 | I197: 10 | J197: 7 | K197: 290 | L197: 부산광역시 해운대구 우1동 737 | M197: 이석구, (공 석) | N197: 051-749-7000 (749-7025) | O197: 1978-04-25
A198: 28 | B198: 부산광역시 | C198: 관광호텔업 | D198: 특1 | E198: 파라다이스호텔부산 | F198: ㈜파라다이스호텔부산 | H198: 461 | I198: 48 | J198: 19 | K198: =SUM(G198:J198) -> 528 | L198: 부산광역시 해운대구 중1동 1408-5 | M198: 정연수, 이인배 | N198: 051-749-2611(051-743-2151) | O198: 1972-01-01
A199: 29 | B199: 부산광역시 | C199: 관광호텔업 | D199: 특1 | E199: 해운대그랜드호텔 | F199: ㈜해운대그랜드호텔 | G199: 42 | H199: 227 | I199: 15 | J199: 36 | K199: 320 | L199: 부산광역시 해운대구 우1동 651-2 | M199: 손련화, (공 석) | N199: 051-740-0114(051-740-0142) | O199: 1996-05-18
A200: 30 | B200: 부산광역시 | C200: 관광호텔업 | D200: 특1 | E200: 노보텔 앰배서더 부산 | F200: 진산호텔앤리조트(유) | G200: 34 | H200: 158 | I200: 36 | J200: 101 | K200: 329 | L200: 부산광역시 해운대구 중1동 1405-16 | M200: 강용, 전창현 | N200: 051-743-1234(051-701-7603) | O200: 2009-06-19
A201: 31 | B201: 부산광역시 | C201: 관광호텔업 | D201: 1 | E201: (주)호텔일루아 | F201: ㈜호텔일루아 | G201: 32 | H201: 18 | I201: 4 | J201: 3 | K201: 57 | L201: 부산광역시 해운대구 중2동 1509-2 | M201: 허주희, 박민규 | N201: 051-744-1331(051-741-5757) | O201: 2002-09-09
A202: 32 | B202: 부산광역시 | C202: 관광호텔업 | D202: 1 | E202: 송정관광호텔 | F202: ㈜파인프라자 | G202: 40 | H202: 4 | I202: 12 | J202: 4 | K202: =SUM(G202:J202) -> 60 | L202: 부산광역시 해운대구 송정동 297-9 | M202: 노용현, 안용우 | N202: 051-702-7766(051-704-0522) | O202: 2002.1
A203: 33 | B203: 부산광역시 | C203: 관광호텔업 | D203: 1 | E203: 호텔리베라 해운대 | F203: ㈜나라교역 | G203: 62 | H203: 22 | I203: 2 | J203: 5 | K203: 91 | L203: 부산광역시 해운대구 중1동 1380-14 | M203: 제경석, 박홍수 | N203: 051-740-2111(051-740-2100) | O203: 2009-06-18
... 606 more rows

Sheet 등록현황(휴양콘도미니엄업)
A1: 휴양콘도미니엄업 현황(전국)
A3: 연번 | B3: 지역 | C3: 회 사 명 | D3: 시 설 명 | E3: 객 실 수 | I3: 소 재 지 | J3: 대표자 | K3: 전화번호 | L3: 등록년월일 (변경등록) | M3: 자본금(원) | N3: 비 고 (휴업 등 여부)
E4: 66㎡이하 | F4: 66㎡~132㎡ 이하 | G4: 132㎡ 이상 | H4: 소계
A5: 합계
A6: 소계 | B6: 부산광역시 | E6: =SUM(E7:E10) -> 262 | F6: =SUM(F7:F10) -> 870 | G6: =SUM(G7:G10) -> 253 | H6: =SUM(H7:H10) -> 1,385
A7: 1 | B7: 부산광역시 | C7: ㈜건영 | D7: ㈜건영 해운대 글로리콘도 | E7: 210 | F7: 34 | H7: 244 | I7: 부산광역시 해운대구 우1동 628- 5 | J7: 강희용 | K7: 051-746-8181 (051-743-1732) | L7: 1984.08
A8: 2 | B8: 부산광역시 | C8: 한화국토개발㈜ | D8: 한화리조트 | F8: 413 | G8: 4 | H8: 417 | I8: 부산광역시 해운대구 우1동 1410-3 | J8: 홍원기 | K8: 051-749-5100 (051-749-5400) | L8: 2001.07
A9: 3 | B9: 부산광역시 | C9: 대승D&C㈜ | D9: 팔레드씨즈콘도 | E9: 52 | F9: 30 | G9: 249 | H9: 331 | I9: 부산광역시 해운대구 중1동 1124-2 | J9: 김선웅 | K9: 051-746-1010 051-746-1068 | L9: 2008-02-26
A10: 4 | B10: 부산광역시 | C10: 신흥주택 | D10: 대우월드마크콘도 | F10: 393 | H10: 393 | I10: 부산광역시 해운대구 우동 1435-2번지 | J10: 박상춘 | K10: 051-746-9342 (051-746-9393) | L10: 2008-07-24
A11: 소계 | B11: 인천광역시 | E11: =SUM(E12:E13) -> 237 | F11: =SUM(F12:F13) -> 55 | G11: =SUM(G12:G13) -> 59 | H11: =SUM(H12:H13) -> 351
A12: 1 | B12: 인천광역시 | C12: 휴양콘도미니엄업 | D12: 골든스카이인터내셔널리조트 | E12: 87 | F12: 55 | G12: 59 | H12: =SUM(E12:G12) -> 201 | I12: 중구 을왕동 773번지 | J12: 스카이레저산업㈜ 김창완 | K12: 745-5000 | L12: 2010.02.05
A13: 2 | B13: 인천광역시 | C13: ㈜동양개발 | D13: 동양콘도미니엄 | E13: 150 | H13: 150 | I13: 옹진군 자월면 승봉리 784번지 | J13: 김상순 | K13: 032-832-1818 | L13: 1998.06.01
A14: 소계 | B14: 경기도 | E14: =SUM(E15:E30) -> 473 | F14: =SUM(F15:F30) -> 2,281 | G14: 346 | H14: 3,100
A15: 1 | B15: 경기도 | C15: 기흥관광개발 | D15: 코리아골프빌리지 | F15: 28 | G15: 84 | H15: =SUM(E15:G15) -> 112 | I15: 용인시 기흥구 고매동 30-2 | J15: 이용성 | K15: 031)286-9111 | L15: 2004.1 (2007.06)
A16: 2 | B16: 경기도 | C16: 기흥관광개발 | D16: 기흥아펠바움 | G16: 77 | H16: =SUM(E16:G16) -> 77 | I16: 용인시 기흥구 고매동 5-49,56 | J16: 이용성 | K16: 031)286-8111 | L16: 2006.11 (2007.06)
A17: 3 | B17: 경기도 | C17: 와이에스 인베스트먼트㈜ | D17: 골드훼미리 | E17: 18 | F17: 82 | H17: 100 | I17: 용인시 기흥구 고매동 5-73 | J17: 오진국 | K17: 031)286-9111 | L17: 1993.07 (2006.07)
A18: 4 | B18: 경기도 | C18: ㈜파인리조트 | D18: 양지파인리조트 | F18: 256 | G18: 46 | H18: 302 | I18: 용인시 처인구 양지면 남곡리 34-1 | J18: 장광수 장홍수 | K18: 031)332-2001 | L18: 1996.12
A19: 5 | B19: 경기도 | C19: 투스카니힐스 프로젝트투자금융㈜ | D19: 투스카니힐스 | G19: 91 | H19: 91 | I19: 처인구 이동면 서리 770번지 외 48필지 | J19: 성기상 | K19: 080)432-1321 | L19: 2010.12
A20: 6 | B20: 경기도 | C20: 한화리조트㈜ | D20: 한화리조트 용인 | F20: 242 | G20: 8 | H20: 250 | I20: 용인시 처인구 남사면 봉무리 57-1 | J20: 홍원기 | K20: 031)332-1122 | L20: 1985.04 (2008.07)
A21: 7 | B21: 경기도 | C21: ㈜레이크힐스리조트 | D21: (주)레이크힐스리조트 안성 | F21: 85 | G21: 3 | H21: 88 | I21: 안성시 양성면 산8-2 | J21: 윤석한 | K21: 031-671-2885 | L21: 2002. 5. 29 (2012. 11. 28)
A22: 8 | B22: 경기도 | C22: ㈜서브원 | D22: 곤지암리조트 | E22: 318 | F22: 158 | H22: 476 | I22: 광주시 도척면 도웅리 산 23-1/ www.konjiamresort.co.kr | J22: 박규석 | K22: 031-8026-5000 | L22: 2008.12.15
A23: 9 | B23: 경기도 | C23: ㈜한화국토개발 | D23: 산정호수한화 콘도미니엄 | F23: 204 | G23: 6 | H23: 210 | I23: 경기도 포천시 영북면 산정호수로 402 | J23: 홍원기 | K23: 02-729-4074 | L23: 2010.7.23.
A24: 10 | B24: 경기도 | C24: ㈜예지실업 | D24: 베어스타운리조트 | F24: 337 | H24: 337 | I24: 포천시 내촌면 금강로2536번길 27 | J24: 석호일 | K24: 031-540-5000 | L24: 1991.1.7.
A25: 11 | B25: 경기도 | C25: ㈜풍림산업 | D25: 청평풍림콘도미니엄 | F25: 172 | G25: 4 | H25: 176 | I25: 경기도 가평군 상면 덕현리 402-10 | J25: 이필승 | K25: 031-584-9380 | L25: 1992.01.14
A26: 12 | B26: 경기도 | C26: (주)대명레저산업 양평지점 | D26: (주)대명레저산업 양평지점 | E26: 85 | F26: 116 | G26: 3 | H26: 204 | I26: 개군면 공세리389번지 7호 | J26: 조현철 | K26: 771-8311, | L26: 1992.09
A27: 13 | B27: 경기도 | C27: 한화호텔앤드리조트(주)양평 | D27: 한화호텔앤드리조트(주)양평 | F27: 387 | G27: 14 | H27: 401 | I27: 옥천면 신복리141번지 5호 | J27: 홍원기 | K27: 772-3811 | L27: 2010.01
A28: 14 | B28: 경기도 | C28: 용문산콘도렉스 | D28: 용문산콘도렉스 | E28: 52 | F28: 1 | H28: 53 | I28: 양평군 용문면 금곡리 265 | J28: 김연수 | K28: 772-5580 | L28: 1995.07
A29: 15 | B29: 경기도 | C29: ㈜지산리조트 | D29: 지산메이플 콘도미니엄 | E29: 0 | F29: 55 | G29: 0 | H29: 55 | I29: 이천시 마장면 해월리 산28-1 | J29: 홍완표 | K29: 638-5940 | L29: 1999.12
A30: 16 | B30: 경기도 | C30: 일성레저산업㈜ | D30: 일성남한강콘도미니엄 | F30: 158 | G30: 10 | H30: 168 | I30: 여주군 여주읍 천송리 561-1 | J30: 강교진 | K30: 031_883-1199 | L30: 1999.12
A31: 소계 | B31: 강원도 | E31: =SUM(E32:E90) -> 2,840 | F31: =SUM(F32:F90) -> 12,279 | G31: =SUM(G32:G90) -> 3,383 | H31: =SUM(H32:H90) -> 18,502
A32: 1 | B32: 강원도 | C32: 두산큐벡스㈜ | D32: 두산큐벡스㈜ 라데나콘도 | E32: 0 | F32: 110 | G32: 15 | H32: =SUM(E32:G32) -> 125 | I32: 춘천시 삼천동 792 | J32: 박주현 | K32: 033)240-8000 | L32: 1997.04
A33: 2 | B33: 강원도 | C33: GS건설㈜ | D33: 엘스위트강촌 휴양콘도미니엄 | E33: 0 | F33: 210 | G33: 12 | H33: 222 | I33: 춘천시 남산면 백양리 산1-2 | J33: 허명수 | K33: 033)260-2000 | L33: 2002.06
A34: 3 | B34: 강원도 | C34: 한솔개발주식회사 | D34: 한솔오크밸리사우스휴양콘도미니엄 | E34: 0 | F34: 122 | G34: 44 | H34: 166 | I34: 지정면 월송리 1061-21 | J34: 안광일 | K34: 730-3501 | L34: 1998-06-19
A35: 4 | B35: 강원도 | C35: 한솔개발주식회사 | D35: 한솔골프휴양콘도미니엄 | E35: 0 | F35: 348 | G35: 96 | H35: 444 | I35: 지정면 월송리 1061 | J35: 안광일 | K35: 730-3501 | L35: 1999-07-03
A36: 5 | B36: 강원도 | C36: 한솔개발주식회사 | D36: 한솔오크밸리3차 휴양콘도미니엄(노우스) | E36: 0 | F36: 0 | G36: 103 | H36: 103 | I36: 지정면 월송리 1082-5 | J36: 안광일 | K36: 730-3501 | L36: 2001-06-27
A37: 6 | B37: 강원도 | C37: 한솔개발주식회사 | D37: 오크밸리 스키골프시설지역콘도 C | E37: 0 | F37: 240 | G37: 0 | H37: 240 | I37: 지정면 월송리 577-1 | J37: 안광일 | K37: 730-3501 | L37: 2006-11-28
A38: 7 | B38: 강원도 | C38: 한솔개발주식회사 | D38: 오크밸리 스키골프시설지역콘도 연립식 휴양콘도미니엄 D동 | E38: 0 | F38: 85 | G38: 60 | H38: 145 | I38: 지정면 월송리 577-4 | J38: 안광일 | K38: 730-3501 | L38: 2009-12-04
A39: 8 | B39: 강원도 | C39: ㈜경포산장 | D39: 경포산장 휴양콘도미니엄 | E39: 92 | F39: 0 | G39: 0 | H39: 92 | I39: 강릉시 안현동 산15 | J39: 이용제 | K39: 033-644-7123 | L39: 1999.11.24
A40: 9 | B40: 강원도 | C40: ㈜대찬산업개발 | D40: 경포비치리조트 | E40: 70 | F40: 344 | G40: 5 | H40: 419 | I40: 강릉시 강문동 1-1 | J40: 임문순 | K40: 033-652-2881 | L40: 1991. 01.30 (2012. 05.11)
A41: 10 | B41: 강원도 | D41: 주문진리조트 | E41: 21 | F41: 30 | G41: 19 | H41: 70 | I41: 강릉시 주문진읍 향호리 35-2 | J41: 음덕성 | K41: 033-661-7400 | L41: 1997. 07. 18 (2011.01.10)
A42: 11 | B42: 강원도 | C42: ㈜승산 | D42: 라카이샌드파인 | E42: 56 | F42: 140 | G42: 10 | H42: 206 | I42: 강릉시 안현동 89-87 | J42: 허인영 | K42: 033-820- | L42: 2012.06.13
A43: 12 | B43: 강원도 | C43: 태백관광개발공사 | D43: 오투리조트 휴양콘도미니엄 | E43: 70 | F43: 268 | G43: 86 | H43: =SUM(E43:G43) -> 424 | I43: 태백시 서학로 861(황지동) | J43: 주기영 | K43: 033-580-7000 | L43: 2008-10-02
A44: 13 | B44: 강원도 | C44: 씨스포빌㈜ | D44: 씨포빌콘도 | E44: 16 | F44: 60 | H44: 76 | I44: 삼척시 근덕면 상맹방리 산7-1 | J44: ㅊㅚ연희 | K44: 033-870-5000 | L44: 2012.3.26 | M44: 10억
A45: 14 | B45: 강원도 | C45: ㈜대명레저산업 | D45: 대명비발디파크 1차·2차 | E45: 480 | F45: 600 | G45: 10 | H45: 1,090 | I45: 홍천군 서면 팔봉리 1290-2, 1290-114 | J45: 조현철 | K45: 033-434-8311 | L45: 1994.12
A46: 15 | B46: 강원도 | C46: ㈜대명레저산업 | D46: 메이플휴양콘도 | E46: 0 | F46: 453 | G46: 70 | H46: 523 | I46: 홍천군 서면 팔봉리 산125-16 | J46: 조현철 | K46: 033-434-8311 | L46: 2004.12
A47: 16 | B47: 강원도 | C47: ㈜대명레저산업 | D47: 소노펠리체 휴양콘도미니엄 | E47: 0 | F47: 0 | G47: 504 | H47: 504 | I47: 홍천군 서면 팔봉리 1278-11 | J47: 조현철 | K47: 033-434-8311 | L47: 2009.12
A48: 17 | B48: 강원도 | C48: ㈜대명레저산업 | D48: 대명리조트 체리 휴양콘도미니엄 | E48: 0 | F48: 279 | G48: 0 | H48: 279 | I48: 홍천군 서면 팔봉리 1290-15 | J48: 조현철 | K48: 033-434-8311 | L48: 2010.12
A49: 18 | B49: 강원도 | C49: 웰리힐리 | D49: 휴양콘도미니엄 | E49: 191 | F49: 513 | G49: 63 | H49: 767 | I49: 둔내면 두원리 202 | J49: 이진철 | K49: 033- 343-3000 | L49: 95. 08.
A50: 19 | B50: 강원도 | C50: 청우골프클럽 | D50: 휴양콘도미니엄 | F50: 52 | G50: 6 | H50: 58 | I50: 우천면 하대리 산141 | J50: 정장율 | K50: 033- 340-8000 | L50: 08. 07. 30.
A51: 20 | B51: 강원도 | C51: 동강시스타 | D51: 동강시스타 | E51: 0 | F51: 284 | G51: 16 | H51: 300 | I51: 영월군 영월읍 삼옥리 108 | J51: 남만진 | K51: 033-905-2200 | L51: 2011.5.13
A52: 21 | B52: 강원도 | C52: ㈜용평리조트 | D52: 용평1차 콘도 | E52: 205 | H52: =SUM(E52:G52) -> 205 | I52: 평창군 대관령면 용산리 20 | J52: 정창주 | K52: 335-5757 | L52: 1984.11.17
A53: 22 | B53: 강원도 | C53: ㈜용평리조트 | D53: 용평2차(빌라+타워)콘도 | E53: 182 | F53: 23 | H53: =SUM(E53:G53) -> 205 | I53: 평창군 대관령면 용산리 121 | J53: 정창주 | K53: 335-5757 | L53: 1991.01.30
A54: 23 | B54: 강원도 | C54: ㈜용평리조트 | D54: 용평3차(버치힐)콘도 | G54: 450 | H54: 450 | I54: 평창군 대관령면 용산리 12-1 | J54: 정창주 | K54: 335-5757 | L54: 2003.02.13
A55: 24 | B55: 강원도 | C55: ㈜용평리조트 | D55: 용평4차(그린피아)콘도 | F55: 100 | G55: 238 | H55: 338 | I55: 평창군 대관령면 용산리 90-3 | J55: 정창주 | K55: 335-5757 | L55: 2006.12.04
A56: 25 | B56: 강원도 | C56: ㈜용평리조트 | D56: 용평5차(포레스트,단독형) | G56: 61 | H56: 61 | I56: 평창군 대관령면 용산리 139-1 | J56: 정창주 | K56: 335-5757 | L56: 2006.10.04
A57: 26 | B57: 강원도 | C57: ㈜용평리조트 | D57: 용평5차(포레스트,연립형) | G57: 106 | H57: 106 | I57: 평창군 대관령면 용산리 149-3 | J57: 정창주 | K57: 335-5757 | L57: 2008.09.11
A58: 27 | B58: 강원도 | C58: ㈜용평리조트 | D58: 용평4차(베르데힐) | F58: 112 | G58: 112 | H58: 224 | I58: 평창군 대관령면 용산리 526-1 | J58: 정창주 | K58: 335-5757 | L58: 2008.12.16
A59: 28 | B59: 강원도 | C59: ㈜보광 | D59: 스카이휴양콘도 | E59: 347 | F59: 195 | G59: 214 | H59: 756 | I59: 평창군 봉평면 면온리 1094 | J59: 홍석규 | K59: 330-6200 | L59: 1995.12.16
A60: 29 | B60: 강원도 | C60: ㈜보광 | D60: 노블스윙콘도미니엄 | E60: 0 | F60: 8 | G60: 43 | H60: 51 | I60: 평창군 봉평면 면온리 959 | J60: 홍석규 | K60: 330-6400 | L60: 2007.02.13
A61: 30 | B61: 강원도 | C61: 한화호텔&리조트㈜ | D61: 한화호텔&리조트 평창한화콘도 | E61: 0 | F61: 316 | G61: 124 | H61: 440 | I61: 평창군 봉평면 면온리 946-7 | J61: 홍원기 | K61: 334-6100 | L61: 2004.12.10
A62: 31 | B62: 강원도 | C62: 신세계대관령리조트㈜ | D62: 신세계대관령리조트 | H62: 0 | I62: 평창군 대관령면 횡계리 276-37 | K62: 335-5011 | L62: 1990.02.21 | N62: 휴업
A63: 32 | B63: 강원도 | C63: 강원도개발공사 | D63: 알펜시아타운(빌리지1차) | E63: 126 | F63: 213 | G63: 4 | H63: 343 | I63: 평창군 대관령면 용산리 195-1 | J63: 김상갑 | K63: 339-0000 | L63: 2009.08.07
A64: 33 | B64: 강원도 | C64: 강원도개발공사 | D64: 홀리데이인스위트 | E64: 0 | F64: 40 | G64: 36 | H64: 76 | I64: 평창군 대관령면 용산리 219-9 | J64: 김상갑 | K64: 339-0000 | L64: 2010.09.01
A65: 34 | B65: 강원도 | C65: ㈜강원랜드 | D65: 하이원리조트 | E65: 90 | F65: 666 | G65: 147 | H65: 903 | I65: 정선군 고한읍 고한리 384 | J65: 최흥집 | K65: 033-590-6903 | L65: 2006.12.07 (2012.01.27)
A66: 35 | B66: 강원도 | C66: ㈜대림산업 | D66: 메이힐스리조트 | E66: 0 | F66: 486 | G66: 109 | H66: 595 | I66: 정선군 고한읍 고한리 142 | J66: 김종인 | K66: 033-590-1000 | L66: 2007.12.07 (2012.05.01)
A67: 36 | B67: 강원도 | C67: ㈜정선랜드 | D67: 하이캐슬리조트 | E67: 0 | F67: 313 | G67: 26 | H67: 339 | I67: 정선군 사북읍 사북리 469 | J67: 이상훈 | K67: 033-560-7777 | L67: 2011.06.29
A68: 37 | B68: 강원도 | C68: ㈜대명레저산업 | D68: 대명리조트 쏠비치 휴양콘도미니엄 | E68: 0 | F68: 186 | G68: 33 | H68: 219 | I68: 양양군 손양면 오산리 23-4 / www.daemyungresort.com | J68: 조현철 | K68: 033-670-3611 | L68: 2007. 7
A69: 38 | B69: 강원도 | C69: (주) 새서울레저 | D69: 골든비치리조트 비치골프텔 | E69: 0 | F69: 30 | G69: 20 | H69: 50 | I69: 양양군 손양면 동호리 510-6 / www.gogoldenbeach.co.kr | J69: 권기연 | K69: 033-670-7704 | L69: 2007.10
A70: 39 | B70: 강원도 | C70: ㈜파인리조트 | D70: 설악파인리조트 | E70: 3 | F70: 134 | G70: 4 | H70: =SUM(E70:G70) -> 141 | I70: 속초시 노학동 746-96 | J70: 장광수 | K70: 635-5800 | L70: 2002.7.19 (2005.4.18)
A71: 40 | B71: 강원도 | C71: ㈜현대스카이리조트 | D71: 현대스카이리조트 | E71: 24 | F71: 84 | G71: 6 | H71: =SUM(E71:G71) -> 114 | I71: 속초시 조양동 1401 | J71: 남대희 | K71: 631-8711 | L71: 1995.3.14 (2011.11.21)
A72: 41 | B72: 강원도 | C72: ㈜신세계영랑호리조트 | D72: 신세계영랑호리조트 | E72: 188 | F72: 41 | G72: 31 | H72: 260 | I72: 속초시 금호동 600-7 | J72: 윤명규 | K72: 633-0001 | L72: 변경등록일 (2012.9.17)
A73: 42 | B73: 강원도 | C73: 한화호텔앤드리조트 | D73: 한화호텔앤드리조트 | E73: 0 | F73: 1,465 | G73: 99 | H73: 1,564 | I73: 속초시 장사동 24-1 | J73: 홍원기 | K73: 635-7711 | L73: 1985.4.15 (2010.1.19)
A74: 43 | B74: 강원도 | C74: ㈜현대수콘도미니엄 | D74: 현대수콘도미니엄 | E74: 0 | F74: 468 | G74: 7 | H74: 475 | I74: 속초시 노학동 729-3 | J74: 이수원 | K74: 635-9070 | L74: 1986.6.13 (2009.4.9)
A75: 44 | B75: 강원도 | D75: 연호콘도 | E75: 0 | F75: 115 | G75: 4 | H75: 119 | I75: 속초시 노학동 416-1 | K75: 631-5000 | N75: 휴업
A76: 45 | B76: 강원도 | C76: 사조마을휴양콘도 | D76: 사조마을콘도 | E76: 4 | F76: 212 | G76: 3 | H76: 219 | I76: 속초시 노학동 456-2 | J76: 황영준 | K76: 631-9631 | L76: (2012.3.14)
A77: 46 | B77: 강원도 | D77: 설악리조트(코레스코) | E77: 0 | F77: 153 | G77: 0 | H77: 153 | I77: 속초시 노학동 749-68 | K77: 635-8040 | N77: 휴업
A78: 47 | B78: 강원도 | C78: ㈜신내기업 | D78: 동해휴양콘도 | E78: 0 | F78: 60 | G78: 0 | H78: 60 | I78: 속초시 대포동 790-4 | J78: 윤천옥 | K78: 635-9631 | L78: 1990.9.24
A79: 48 | B79: 강원도 | C79: 금로리조트㈜설악 | D79: 금호설악콘도 | E79: 0 | F79: 237 | G79: 10 | H79: 247 | I79: 속초시 노학동 795-1 | J79: 박상배 | K79: 636-8000 | L79: 1997.6.7 (2012.4.16)
A80: 49 | B80: 강원도 | C80: 일성레저산업㈜ | D80: 일성설악 | E80: 148 | F80: 150 | G80: 43 | H80: =SUM(E80:G80) -> 341 | I80: 고성군 토성면 고성대로 47-24 | J80: 강교진 | K80: 033-636-0013 | L80: 1995. 8
A81: 50 | B81: 강원도 | C81: ㈜포유리조트 | D81: ㈜포유리조트 | E81: 49 | F81: 79 | G81: 19 | H81: 147 | I81: 고성군 토성면 잼버리동로 97 | J81: 조동현 | K81: 033-633-9100 | L81: 1992. 4
A82: 51 | B82: 강원도 | C82: ㈜대명레저산업 | D82: 대명골프&리조트 | E82: 106 | F82: 796 | G82: 79 | H82: 981 | I82: 고성군 토성면 미시령옛길 1153 | J82: 조현철 | K82: 033-635-8311 | L82: 1991. 7
A83: 52 | B83: 강원도 | C83: ㈜동광개발 | D83: 설악썬밸리 | E83: 0 | F83: 127 | G83: 71 | H83: 198 | I83: 고성군 죽왕면 순포로 188 | J83: 이신근 | K83: 033-638-5326 | L83: 2005. 7
A84: 53 | B84: 강원도 | C84: ㈜미봉 | D84: 금강산 | E84: 74 | F84: 151 | G84: 0 | H84: 225 | I84: 고성군 현내면 금강산로 416 | J84: 최정진 | K84: 033-680-7800 | L84: 1997. 9
A85: 54 | B85: 강원도 | C85: ㈜이랜드레저비스 | D85: 이랜드파크 | E85: 48 | F85: 148 | G85: 17 | H85: 213 | I85: 고성군 토성면 신평골길 8-25 | J85: 강성민 | K85: 033-633-0100 | L85: 1990. 3
A86: 55 | B86: 강원도 | C86: ㈜이랜드레저비스 | D86: 이랜드파크켄싱턴리조트설악비치 | E86: 36 | F86: 122 | G86: 24 | H86: 182 | I86: 고성군 토성면 동해대로 4800 | J86: 강성민 | K86: 033-631-7601 | L86: 1991. 6
A87: 56 | B87: 강원도 | C87: ㈜알프스리조트 | D87: 알프스 | E87: 0 | F87: 468 | G87: 32 | H87: 500 | I87: 고성군 간성읍 흘리령길 52 | J87: 김구영 | K87: 02-3787-3573 | L87: 1991. 5 | N87: 휴업
A88: 57 | B88: 강원도 | C88: ㈜코레스코 | D88: 삼포리조트 | E88: 0 | F88: 251 | G88: 0 | H88: 251 | I88: 고성군 죽왕면 삼포해변길 9 | J88: 김영수 | K88: 033-631-3811 | L88: 1992. 8
A89: 58 | B89: 강원도 | C89: ㈜현대산업개발 | D89: 아이파크콘도 | E89: 178 | F89: 84 | G89: 68 | H89: 330 | I89: 고성군 토성면 고성대로 75-16 | J89: 박창민 | K89: 033-635-9300 | L89: 1991. 9
A90: 59 | B90: 강원도 | C90: 진흥레저㈜ | D90: 파인리즈빌라휴양콘도 | E90: 36 | F90: 108 | G90: 24 | H90: 168 | I90: 고성군 토성면 잼버리동로 267 | J90: 김재봉 | K90: 033-630-6561 | L90: 2008. 8
A91: 소계 | B91: 충청북도 | D91: 8개 업체 | E91: =SUM(E92:E99) -> 631 | F91: =SUM(F92:F99) -> 1,496 | G91: =SUM(G92:G99) -> 53 | H91: =SUM(H92:H99) -> 2,180
A92: 1 | B92: 충청북도 | C92: ㈜이랜드레저비스 | D92: 이랜드레저비스 켄싱턴리조트 충주 | E92: 30 | F92: 150 | H92: 180 | I92: 충주시 앙성면 돈산리 155-1 | J92: 강성민 | K92: 043-854-3100 | L92: 1997.3 (2010.11.2)
A93: 2 | B93: 충청북도 | C93: ㈜사조마을 | D93: 사조리조트 수안보콘도 | F93: 50 | H93: 50 | I93: 충주시 수안보면 온천리 642-1 | J93: 고승수 | K93: 043-846-0750 | L93: 2001.1 (2010.5.25)
A94: 3 | B94: 충청북도 | C94: ㈜이랜드레저비스 | D94: 이랜드파크 한국콘도 수안보 | E94: 92 | H94: 92 | I94: 충주시 수안보면 온천리 778 | J94: 강성민 | K94: 043-856-1801 | L94: 1995.7 (2009.9.18)
A95: 4 | B95: 충청북도 | C95: 충주호리조트 | D95: ㈜한국코타 | F95: 271 | G95: 6 | H95: 277 | I95: 충주 동량면 하천리 421 | J95: 전병환 | K95: 043-851-2850 | L95: 1994.3.11
A96: 5 | B96: 충청북도 | C96: 한화호텔앤드리조트㈜ | D96: 한화리조트/수안보 | F96: 68 | G96: 4 | H96: 72 | I96: 충주시 수안보면 온천리 748-2 | J96: 홍원기 | K96: 043-846-8211 | L96: 1993.1
A97: 6 | B97: 충청북도 | C97: ㈜ES콘도미니엄 | D97: 능강휴양콘도미니엄 | F97: 249 | G97: 6 | H97: =SUM(F97:G97) -> 255 | I97: 제천시 수산면 능강리 산48-1 | J97: 이종용 | K97: 043-648-0480 | L97: 1997.08.13
A98: 7 | B98: 충청북도 | C98: ㈜리솜리조트 | D98: 리솜포레스트 | F98: =H98-G98 -> 361 | G98: 37 | H98: 398 | I98: 제천시 백운면 평동리 산67-10 | J98: 서환석 | K98: 043-649-6000 | L98: 2011.10.18
A99: 8 | B99: 충청북도 | C99: ㈜대명레저산업 | D99: 대명리조트 단양 | E99: 509 | F99: 347 | H99: =SUM(E99:G99) -> 856 | I99: 단양군 단양읍 상진리 4-1 | J99: 조현철 | K99: 043-420-8311 | L99: 2002.11.28. | M99: 6,110,000,000
A100: 소계 | B100: 충청남도 | D100: 11개 업체 | E100: =SUM(E101:E111) -> 501 | F100: =SUM(F101:F111) -> 1,353 | G100: =SUM(G101:G111) -> 147 | H100: =SUM(H101:H111) -> 2,001
A101: 1 | B101: 충청남도 | C101: 천안리조트피에프브이㈜ | D101: 천안휴러클리조트 | E101: 0 | F101: 217 | G101: 34 | H101: 251 | I101: 천안시 동남구 성남면 종합휴양지로 200 | J101: 이규종 | K101: 041-560-9114 | L101: 2010.6.25 (2010.7.2)
A102: 2 | B102: 충청남도 | C102: 엘아이지건설(주)도고글로리콘도 | D102: 엘아이지건설(주) 도고글로리콘도 | E102: 159 | F102: 54 | H102: 213 | I102: 아산시 도고면 기곡리 17-10 | J102: 이현태 | K102: 041-541-7100 | L102: 1992-10-23
A103: 3 | B103: 충청남도 | C103: ㈜토비스알앤씨 | D103: (주)토비스알앤씨 | E103: 52 | F103: 48 | G103: 17 | H103: 117 | I103: 아산시 도고면 기곡리 261-15번지 | J103: 이명준 | K103: 041-541-5432 | L103: 1992-12-14
A104: 4 | B104: 충청남도 | C104: ㈜토비스알앤씨 | D104: (주)토비스레저산업 | E104: 33 | F104: 52 | H104: 85 | I104: 아산시 도고면 기곡리 261-17번지 | J104: 이명준 | K104: 041-541-5432 | L104: 2000-09-23
A105: 5 | B105: 충청남도 | C105: 주식회사 비에스투어앤리조트 | D105: (주)비에스투어앤리조트 | E105: 14 | F105: 154 | G105: 19 | H105: 187 | I105: 아산시 도고면 기곡리 305-4 | J105: 공병식 | K105: 041-542-7007 | L105: 2005-12-23
A106: 6 | B106: 충청남도 | C106: ㈜청남건설 | D106: 윈체스트W1 | E106: 75 | F106: 32 | G106: 8 | H106: 115 | I106: 서산시 대산읍 화곡리 51-50 | J106: 김용태 | K106: 666-8800 | L106: 2009.08.04
A107: 7 | B107: 충청남도 | C107: 롯데부여리조트㈜ | D107: 롯데부여리조트 | E107: 68 | F107: 240 | G107: 14 | H107: 322 | I107: 부여군 규암면 합정리 578 | J107: 김창권 | K107: 939-1011 | L107: 2010.8.27.
A108: 8 | B108: 충청남도 | C108: ㈜리솜리조트 | D108: 스파캐슬콘도미니엄 | E108: 6 | F108: 114 | G108: 14 | H108: 134 | I108: 예산군 덕산면 사동리 351 | J108: 서환석 | K108: 330-8000 | L108: 2005.07
A109: 9 | B109: 충청남도 | C109: ㈜리솜리조트 | D109: 스파캐슬콘도 | E109: 36 | F109: 232 | G109: 5 | H109: 273 | I109: 예산군 덕산면 사동리 361 | J109: 서환석 | K109: 330-8000 | L109: 2007.02
A110: 10 | B110: 충청남도 | C110: ㈜리솜 리조트 | D110: 오션캐슬 | E110: 58 | F110: 154 | G110: 36 | H110: 248 | I110: 태안군 안면읍 꽃지해안로204 | J110: 서환석 | K110: 041-671-7021 | L110: 2009.12.11. | N110: 영업중
A111: 11 | B111: 충청남도 | C111: 한화호텔앤드리조트㈜ | D111: 골든베이골프& 휴양콘도 | F111: 56 | H111: 56 | I111: 태안군 근흥면 정산포로217 | J111: 안상국 | K111: 041-671-8130 | L111: 2010.04.27. | N111: 영업중
A112: 소계 | B112: 전라북도 | D112: 6개소 | E112: =SUM(E113:E118) -> 145 | F112: =SUM(F113:F118) -> 616 | G112: =SUM(G113:G118) -> 2 | H112: =SUM(H113:H118) -> 763
A113: 1 | B113: 전라북도 | C113: 이랜드파크 | D113: 켄싱턴리조트 지리산남원 | E113: - | F113: 156 | G113: - | H113: =SUM(E113:G113) -> 156 | I113: 전라북도 남원시 어현동 37-122 | J113: 강성민 | K113: 063-636-7102 | L113: 1990-12-08
A114: 2 | B114: 전라북도 | C114: 주)중앙건설 | D114: 중앙하이츠콘도미니엄 | E114: 60 | F114: 93 | G114: - | H114: 153 | I114: 전라북도 남원시 산곡동 산 70 | J114: 조규영 | K114: 063-626-8080 | L114: 1995-07-13
A115: 3 | B115: 전라북도 | C115: 주)토비스레저산업 | D115: 지리산토비스콘도미니엄 | E115: 30 | F115: 30 | G115: - | H115: 60 | I115: 전라북도 남원시 산내면 장항리 221 | J115: 이명준 | K115: 063-636-3663 | L115: 1997-08-04
A116: 4 | B116: 전라북도 | C116: 일성레저산업주식회사 | D116: 일성지리산콘도미니엄 | E116: - | F116: 166 | G116: 1 | H116: 167 | I116: 전라북도 남원시 산내면 대정리 805-1 | J116: 강교진 | K116: 063-636-7000 | L116: 1998-01-09
A117: 5 | B117: 전라북도 | C117: 일성레저산업㈜ | D117: 일성무주콘도 | E117: - | F117: 121 | G117: - | H117: 121 | I117: 전라북도 무주군 무풍면 현내리 1135 | J117: 강교진 | K117: 063-324-3939 | L117: 2002-02-28
A118: 6 | B118: 전라북도 | C118: ㈜토비스알앤씨 | D118: 무주토비스콘도 | E118: 55 | F118: 50 | G118: 1 | H118: 106 | I118: 전라북도 무주군 무풍면 삼거리 120 | J118: 이명준 | K118: 063-322-6411 | L118: 2003-03-13
A119: 소계 | B119: 전라남도 | D119: 6개소 | E119: =SUM(E120:E125) -> 409 | F119: =SUM(F120:F125) -> 387 | G119: =SUM(G120:G125) -> 164 | H119: =SUM(H120:H125) -> 960
A120: 1 | B120: 전라남도 | C120: (주)일상해양산업 | D120: 디오션콘도 | F120: 7 | G120: 121 | H120: =SUM(E120:G120) -> 128 | I120: 소호동 산98번지 | J120: 정창주 | K120: 1588-0009 | L120: 2008.08.01 | N120: 영업중
A121: 2 | B121: 전라남도 | C121: 전남개발공사 | D121: 경도리조트(콘도) | E121: 8 | F121: 92 | H121: =SUM(E121:G121) -> 100 | I121: 경호동 306 | J121: 김주열 | K121: 061) 660-1000 | L121: 2012.05.02 | N121: 영업중
A122: 3 | B122: 전라남도 | C122: 중흥골드스파&리조트 | D122: 중흥골드스파&리조트 | E122: 77 | F122: 108 | G122: 38 | H122: 223 | I122: 나주시 남평음 우산리 2356-4 | J122: 박재천 | K122: 335-9000 | L122: 2007-06-13 | M122: 19,400,000,000
A123: 4 | B123: 전라남도 | C123: ㈜스카이뷰리조트 | D123: 송원리조트 | E123: 108 | F123: 102 | H123: =SUM(E123:G123) -> 210 | I123: 구례군 산동면 하관길 70-1 | J123: 명성안 | K123: 061-780-8050 | L123: 1997. 5. 23
A124: 5 | B124: 전라남도 | C124: 금호화순리조트㈜ | D124: 금호화순리조트 | E124: 144 | F124: 70 | G124: 5 | H124: 219 | I124: 옥리510-1 | J124: 박상배 | K124: 061-370-5000 | L124: 1997.08.19 | M124: 5,584,000,000
A125: 6 | B125: 전라남도 | C125: ㈜해남땅끝토비스 | D125: 해남땅끝토비스콘도 | E125: 72 | F125: 8 | H125: 80 | I125: 해남군 송지면 땅끝해안로 1869 | J125: 김만곤 | K125: 530-6000 | L125: 2012.08.14
A126: 소계 | B126: 경상북도 | D126: 6개소 | E126: =SUM(E127:E142) -> 732 | F126: =SUM(F127:F142) -> 1,783 | G126: =SUM(G127:G142) -> 415 | H126: =SUM(H127:H142) -> 2,930
A127: 1 | B127: 경상북도 | C127: 오션골프앤리조트㈜ | D127: 오션골프앤리조트 | E127: 1 | F127: 49 | G127: 1 | H127: =SUM(E127:G127) -> 51 | I127: 포항시 북구 송라면 화진리 872-1 | J127: 김도균 | K127: 260-7000 | L127: 2011.8.19
A128: 2 | B128: 경상북도 | C128: ㈜블루밸리리조트 | D128: 블루리조트경주 휴양콘도미니엄 | E128: 50 | F128: 95 | G128: 1 | H128: =SUM(E128:G128) -> 146 | I128: 경주시 진현동 850-1,3 | J128: 고승수 | K128: 745-6050/745-6059 | L128: 1990.07.28
A129: 3 | B129: 경상북도 | C129: ㈜이랜드파크 경주보문점 | D129: 한국콘도 | E129: . | F129: 105 | G129: 3 | H129: =SUM(E129:G129) -> 108 | I129: 경주시 신평동 601-8 | J129: 강성민 | K129: 777-2780/777-2778 | L129: 1983.08.16 (2012.10.15)
A130: 4 | B130: 경상북도 | C130: 한화리조트㈜ 경주 휴양콘도 | D130: 한화리조트(담톤) | E130: . | F130: 191 | G130: 2 | H130: 193 | I130: 경주시 북군동 30-3 | J130: 홍원기 | K130: 777-8343/777-8991 | L130: 1994.04.16
A131: 5 | B131: 경상북도 | D131: 한화리조트(에톤) | E131: . | F131: 200 | G131: 1 | H131: 201 | L131: 2006.03.15
A132: 6 | B132: 경상북도 | C132: ㈜이랜드파크 경주점 | D132: 켄싱턴리조트 | E132: 351 | F132: 202 | G132: 2 | H132: 555 | I132: 경주시 북군동 11-1 | J132: 강성민 | K132: 748-8400/748-8412 | L132: 1995.02.16 (2012.10.15)
A133: 7 | B133: 경상북도 | C133: ㈜마우나오션개발 | D133: 마우나오션 휴양콘도미니엄(빌) | E133: . | F133: 125 | G133: 18 | H133: 143 | I133: 경주시 양남면 신대리 1265 | J133: 안병덕 | K133: 740-0515/740-0547 | L133: 2003.08.15 (2012.03.30)
A134: 8 | B134: 경상북도 | D134: 마우나오션휴양 콘도미니엄(레오) | E134: . | F134: 4 | G134: 57 | H134: 61 | I134: 경주시 양남면 신대리 1267-2 | L134: 2007.08.24 (2012.03.30)
A135: 9 | B135: 경상북도 | C135: ㈜일성레저산업 | D135: 일성보문콘도 | E135: 74 | F135: 48 | G135: 0 | H135: 122 | I135: 경주시 신평동 601-19 | J135: 강교진 | K135: 744-1199/742-0035 | L135: 2003.12.24
A136: 10 | B136: 경상북도 | C136: 대명리조트경주 휴양콘도미니엄 | D136: 대명리조트 | E136: 240 | F136: 157 | G136: 20 | H136: 417 | I136: 경주시 신평동 400-1 | J136: 조현철 | K136: 778-8301/778-8310 | L136: 2006.04.25
A137: 11 | B137: 경상북도 | C137: ㈜태영건설 | D137: 블루원콘도미니엄 | E137: . | F137: 108 | G137: 186 | H137: 294 | I137: 경주시 천군동 1686 | J137: 김외곤 | K137: 778-9026/778-9065 | L137: 2011.05.30
A138: 12 | B138: 경상북도 | C138: ㈜블루원 | D138: 블루원상주골프리조트 휴양콘도미니엄 | E138: 16 | F138: 19 | G138: 15 | H138: =SUM(E138:G138) -> 50 | I138: 경상북도 상주시 모서면 삼포리 462-9 외 1필지 | J138: 정필묵 | K138: 054-530-8888 | L138: 2008-11-05 (2012-02-09)
A139: 13 | B139: 경상북도 | C139: STX리조트㈜ | D139: STX문경리조트 | F139: 108 | G139: 92 | H139: =SUM(E139:G139) -> 200 | I139: 문경시 농암면 내서리 257-2 | J139: 김태정 | K139: 054)460-5000 | L139: 2008.12.26
A140: 14 | B140: 경상북도 | C140: ㈜문경레저타운 | D140: 문경새재리조트 | F140: 57 | G140: 9 | H140: =SUM(E140:G140) -> 66 | I140: 문경시 문경읍 고요리 1063 | J140: 황동현 | K140: 054-572-5100 | L140: 2012.3.30
A141: 15 | B141: 경상북도 | C141: 벽산건설㈜ | D141: 벽산 덕구온천콘도 | E141: 0 | F141: 75 | G141: 0 | H141: =SUM(E141:G141) -> 75 | I141: 울진군 북면 덕구리 565/ www.dukkuspa.co.kr | J141: 김희철 김인상 | K141: 054)783-0811 | L141: 1990. 7
A142: 16 | B142: 경상북도 | C142: 한화국토개발㈜ | D142: 백암한화콘도 | E142: 0 | F142: 240 | G142: 8 | H142: =SUM(E142:G142) -> 248 | I142: 울진군 온정면 소태리 1438 | J142: 홍원기 | K142: 054)787-7001 | L142: 1988.11
A143: 소계 | B143: 경상남도 | D143: 6개소 | E143: =SUM(E144:E151) -> 319 | F143: =SUM(F144:F151) -> 764 | G143: =SUM(G144:G151) -> 255 | H143: =SUM(H144:H151) -> 1,338
A144: 1 | B144: 경상남도 | C144: ㈜금호리조트 충무마리나 | D144: 금호충무마리나 리조트 | E144: 52 | F144: 194 | G144: 26 | H144: =SUM(E144:G144) -> 272 | I144: 경상남도 통영시 도남동 645 | J144: 박상배 | K144: 055-640-8115 | L144: 2006.11.02
A145: 2 | B145: 경상남도 | C145: ㈜신세계개발 | D145: 에덴밸리리조트 | E145: 96 | F145: 143 | G145: 16 | H145: 255 | I145: 경상남도 양산시 원동면 대리 1040-14 | J145: 문성필 | K145: 055-379-8000 | L145: 2007.12.18
A146: 3 | B146: 경상남도 | C146: ㈜동일리조트 | D146: 통도환타지아콘도 | F146: 50 | G146: 50 | H146: 100 | I146: 경상남도 양산시 하북면 순리리 470 | J146: 김은수 | K146: 055-379-7000 | L146: 2008.12.12
A147: 4 | B147: 경상남도 | C147: ㈜일성레저산업 | D147: 일성부곡콘도미니엄 | E147: 91 | F147: 156 | H147: 247 | I147: 경상남도 창녕군 부곡면 거문리 203-10 | J147: 강교진 | K147: 055-536-9870 | L147: 1992.07.06 (2010.07.22) | N147: 부대시설변경(2010.07.22)
A148: 5 | B148: 경상남도 | C148: ㈜레이크힐스리조트 | D148: ㈜레이크힐스골프텔 부곡 | E148: 14 | F148: 156 | G148: 6 | H148: 176 | I148: 경상남도 창녕군 부곡면 거문리 213-19 | J148: 서병오 | K148: 055-536-5181 | L148: 2003.12.15 (2009.09.18) | N148: 대표자변경 (2009.09.18)
A149: 6 | B149: 경상남도 | D149: 남해하모니리조트콘도 | F149: 16 | G149: 154 | H149: 170 | I149: 경상남도 남해군 남면 덕월리 306-3 | J149: 이만규 | K149: 055-863-4000 | L149: 2007.01.25
A150: 7 | B150: 경상남도 | D150: 남해베네치아리조트 | E150: 30 | F150: 23 | G150: 3 | H150: 56 | I150: 경상남도 남해군 미조면 송정리 837 | J150: 심인섭 | K150: 055-867-8455 | L150: 2007.04.12 (2012.10.22)
A151: 8 | B151: 경상남도 | C151: ㈜신세계리조트 | D151: 신세계리조트 콘도미니엄 | E151: 36 | F151: 26 | H151: 62 | I151: 경상남도 산청군 금서면 지막리 1118 | J151: 박준봉 | K151: 055-973-8890 055-973-8898 | L151: 1996.08.23 (2010.03.25)
A152: 소계 | B152: 제주특별자치도 | E152: =SUM(E153:E196) -> 1,546 | F152: =SUM(F153:F196) -> 2,183 | G152: =SUM(G153:G196) -> 1,732 | H152: =SUM(H153:H196) -> 5,461
A153: 1 | B153: 제주특별자치도 | C153: 일성레저산업㈜ | D153: 일성제주콘도 (휴업) | E153: 45 | F153: 5 | H153: =SUM(E153:G153) -> 50 | I153: 제주시 한림읍 금능리 2051-1 | J153: 강교진 | K153: 064)796-8400 | L153: 1997.8
A154: 2 | B154: 제주특별자치도 | C154: ㈜이랜드파크 | D154: 이랜드파크 켄싱턴리조트 제주 | E154: 50 | H154: =SUM(E154:G154) -> 50 | I154: 제주시 한림읍 귀덕리 3861 | J154: 강성민 | K154: 064)796-9600 | L154: 1998.7 (2011.10) 대표 2011.10.20
A155: 3 | B155: 제주특별자치도 | C155: 엠닷에이㈜ | D155: 메가리조트제주 | E155: 25 | F155: 25 | H155: 50 | I155: 제주시 한경면 판포리 2872 | J155: 마학우 | K155: 064)773-5999 | L155: 1998.11 2009. 4. 30. 상호변경 2012.03.12 지위승계
A156: 4 | B156: 제주특별자치도 | C156: ㈜그린앤블루 | D156: ㈜그린앤블루 사조마을 제주 휴양콘도미니엄 | E156: 8 | F156: 42 | H156: 50 | I156: 제주시 조천읍 북촌리 9-1 | J156: 황영준 | K156: 064)782-8600 | L156: 1998.12 2009. 10. 7. 대표변경 2012.5.15 대표변경
A157: 5 | B157: 제주특별자치도 | C157: ㈜토비스알앤씨 | D157: 제주토비스콘도① | E157: 24 | F157: 24 | G157: 2 | H157: 50 | I157: 제주시 애월읍 애월리 2505 | J157: 이명준 | K157: 064)799-9901 | L157: 1999.8 2009. 2. 4. 대표변경 2009. 9. 18. 대표변경 2009. 12. 7. 대표변경
A158: 6 | B158: 제주특별자치도 | C158: ㈜미봉 | D158: 제주금강산콘도 | F158: 50 | G158: 4 | H158: 54 | I158: 제주시 한림읍 협재리 929-1 | J158: 최정진 | K158: 064)795-7800 | L158: 2002.7
A159: 7 | B159: 제주특별자치도 | C159: ㈜토비스레져산업 | D159: ㈜토비스레저산업 제주토비스콘도미니엄 | E159: 34 | F159: 34 | H159: 68 | I159: 제주시 애월읍 애월리 2504-1 | J159: 이희창 | K159: 064)799-9901 | L159: 2002.8 2009. 2. 4. 대표변경 2009. 9. 18. 대표변경 2009. 12. 7. 대표변경 2012.9.13 대표변경
A160: 8 | B160: 제주특별자치도 | C160: 동양개발(주) | D160: 제주동양콘도 | E160: 40 | F160: 36 | G160: 6 | H160: 82 | I160: 제주시 애월읍 구엄리 609-1 | J160: 윤현구 | K160: 064)713-5100 | L160: 2003.7 (2011.11)
A161: 9 | B161: 제주특별자치도 | C161: 한화호텔앤드리조트 주식회사 | D161: 한화리조트 제주 | F161: 396 | G161: 1 | H161: 397 | I161: 제주시 회천동 3-16 www.hanwharesort.co.kr | J161: 홍원기 | K161: 064)725-9000 | L161: 2003. 10
A162: 10 | B162: 제주특별자치도 | C162: ㈜대명레저산업 | D162: 대명리조트 제주 | E162: 43 | F162: 191 | G162: 8 | H162: 242 | I162: 제주시 조천읍 함덕리 274 | J162: 조현철 | K162: 064)780-5000 | L162: 2004.7 2007.9 변경 2009. 4. 6. 부대시설 추가
A163: 11 | B163: 제주특별자치도 | C163: (주)제이엔알 | D163: 제주힐 리조트 | E163: 51 | H163: 51 | I163: 제주시 한림읍 협재리 598-1 | J163: 이우선 김태수 | K163: 064)796-2400 | L163: 2004.8 2008.6 승계
A164: 12 | B164: 제주특별자치도 | C164: 라온레저개발㈜ | D164: 라온골프클럽 콘도미니엄 | E164: 33 | F164: 43 | G164: 4 | H164: 80 | I164: 제주시 한경면 저지리 산19-1 | J164: 손천수 | K164: 064)795-1000 | L164: 2004.1
A165: 13 | B165: 제주특별자치도 | C165: GS건설㈜ | D165: 엘스위트콘도 | G165: 60 | H165: 60 | I165: 제주시 애월읍 어음리 산19 | J165: 허명수 | K165: 064)799-7000 | L165: 2004.11 2009. 4. 10. 대표변경
A166: 14 | B166: 제주특별자치도 | C166: ㈜인터내셔날퓨텍 | D166: 제주발리리조트 | E166: 56 | F166: 37 | H166: 93 | I166: 제주시 한림읍 협재리 1193 | J166: 이성준 | K166: 064)795-3333 | L166: 2005. 6 2008.11 경매
A167: 15 | B167: 제주특별자치도 | C167: ㈜한신리조트 | D167: ㈜한신리조트 | E167: 7 | F167: 48 | H167: 55 | I167: 제주시 애월읍 고성리 980 | J167: 김두영 | K167: 064)799-4567 | L167: 2005.7
A168: 16 | B168: 제주특별자치도 | C168: ㈜타미우스 | D168: 타미우스빌리지 | E168: 68 | F168: 16 | G168: 49 | H168: 133 | I168: 제주시 애월읍 봉성리 산5번지 | J168: 김춘배 | K168: 064)793-0707 | L168: 2005.7 2009.10. 21. 대표 변경 2010.1. 18. 대표변경
A169: 17 | B169: 제주특별자치도 | C169: ㈜블랙스톤리조트 | D169: (주)블랙스톤리조트 | G169: 50 | H169: 50 | I169: 제주시 한림읍 금악 산67-1 | J169: 원기룡 | K169: 064)795-2126 | L169: 2005.9.13. (대표 12.11.6)
A170: 18 | B170: 제주특별자치도 | C170: ㈜네츄럴파크 리조트 | D170: 네츄럴파크 리조트 | F170: 63 | G170: 9 | H170: 72 | I170: 제주시 한림읍 협재리 876-3 | J170: 문후금 | K170: 064)796-8191 | L170: 2006.5
A171: 19 | B171: 제주특별자치도 | C171: 일성레저산업㈜ | D171: 일성비치콘도 | F171: 177 | G171: 1 | H171: 178 | I171: 제주시 한림 금능 1625 | J171: 강교진 | K171: 064)796-8400 | L171: 2006.70
A172: 20 | B172: 제주특별자치도 | C172: 신안관광개발㈜ | D172: 에버리스 골프 리조트 | F172: 50 | H172: 50 | I172: 제주시 애월 어음 산35 | J172: 정재하 | K172: 064)795-5000 | L172: 2006.12
A173: 21 | B173: 제주특별자치도 | C173: ㈜푸른콘도 | D173: 푸른콘도 | E173: 50 | H173: 50 | I173: 제주시 한림읍 귀덕리 2575 | J173: 김순여 | K173: 064)796-0657 | L173: 2007. 4
A174: 22 | B174: 제주특별자치도 | C174: 라헨느리조트㈜ | D174: 라헨느콘도미니엄 | G174: 51 | H174: 51 | I174: 제주시 봉개동 237-13 | J174: 민영호 | K174: 064)754-9000 | L174: 2007. 6 2009. 5. 12. 대표변경
A175: 23 | B175: 제주특별자치도 | C175: ㈜에니스 | D175: 세인트포 휴양콘도미니엄 | G175: 52 | H175: 52 | I175: 제주시 구좌읍 김녕리 5160-1 | J175: 정병주 | K175: 064)782-3803 | L175: 2007.12 (2012.1.27대표변경)
A176: 24 | B176: 제주특별자치도 | C176: (재)관정 이종환 교육재단 | D176: 크라운컨트리클럽 골프 빌리지 | F176: 3 | G176: 28 | H176: 31 | I176: 제주시 조천읍 북촌리 산65 | J176: 이석준 | K176: 064)784-4811 | L176: 2008.05 (대표 2012.4.16)
A177: 25 | B177: 제주특별자치도 | C177: 한라산리조트 주식회사 | D177: 한라산 콘도미니엄 | E177: 42 | F177: 7 | G177: 1 | H177: 50 | I177: 제주시 오등동 10-14 | J177: 김용덕 | K177: 064)723-1366 | L177: 2010.02.22
A178: 26 | B178: 제주특별자치도 | C178: 그랑블제주알앤지㈜ | D178: 아덴힐리조트&골프클럽 | F178: 20 | G178: 10 | H178: 30 | I178: 제주시 한림읍 금악리 산32-1 | J178: 윤형인 | K178: 064-730-7023 | L178: 2011.12.30 (객실추가 2012.5.18)
A179: 27 | B179: 제주특별자치도 | C179: 라온레저개발㈜ | D179: 라온프라이빗타운 | G179: 934 | H179: 934 | I179: 제주시 한림읍 금능남로 127 | J179: 손천수 | K179: 064-795-8000 | L179: 2012.01.09
A180: 28 | B180: 제주특별자치도 | C180: ㈜이랜드파크 | D180: ㈜이랜드파크 한국콘도제주중문 | E180: 216 | H180: 216 | I180: 서귀포시 색달동 2822-5 | J180: 강성민 | K180: 064)738-9101 | L180: 1983. 7 (2011.10) (대표 2011.10.20)
A181: 29 | B181: 제주특별자치도 | C181: 풍림개발㈜ | D181: 풍림리조트콘도 | E181: 246 | H181: 246 | I181: 서귀포시 강정동 2677 | J181: 이필승 | K181: 064)739-9001 | L181: 1998. 4
A182: 30 | B182: 제주특별자치도 | C182: CJ개발㈜ | D182: 나인브릿지콘도 | E182: 28 | G182: 72 | H182: 100 | I182: 서귀포시 안덕면 광평리 산15-1 | J182: 김춘학 | K182: 064)793-9911 | L182: 2001. 7 (2011.9)
A183: 31 | B183: 제주특별자치도 | C183: (주)레이크힐스 리조트 | D183: 레이크힐스 리조트 제주 | F183: 50 | H183: 50 | I183: 서귀포시 상예동 4611 | J183: 윤석한 | K183: 064)738-8711 | L183: 2001. 10 2009. 2. 13. 대표변경 (2011.12) 12.06.20대표변경
A184: 32 | B184: 제주특별자치도 | C184: 금호리조트㈜ | D184: 금호리조트(주) 제주 | E184: 30 | F184: 18 | G184: 2 | H184: 50 | I184: 서귀포시 남원읍 남원리 2384-1 | J184: 박상배 | K184: 064)766-8000 | L184: 2002. 5 (대표 2012.4.19)
A185: 33 | B185: 제주특별자치도 | C185: ㈜수농 | D185: 샤인빌리조트 | F185: 278 | G185: 32 | H185: 310 | I185: 서귀포시 표선면 토산리 17 | J185: 박찬수 | K185: 064)780-7000 | L185: 2002.12
A186: 34 | B186: 제주특별자치도 | C186: 해비치리조트㈜ | D186: 해비치오션사이드 | F186: 189 | G186: 26 | H186: 215 | I186: 서귀포시 표선면 표선리 40-69 | J186: 오성훈 | K186: 064)780-8000 | L186: 2003. 3
A187: 35 | B187: 제주특별자치도 | C187: 리체클럽㈜ | D187: 유로클럽리조트 | E187: 15 | F187: 36 | H187: 51 | I187: 서귀포시 토평동 659-1 | J187: 김석환 | K187: 064)763-1003 | L187: 2006.05 2009. 1. 21. 대표변경
A188: 36 | B188: 제주특별자치도 | C188: ㈜캐슬렉스제주 | D188: 캐슬렉스제주 휴양콘도미니엄 | G188: 83 | H188: 83 | I188: 서귀포시 안덕면 광평 352-1 | J188: 김성원 | K188: 064)793-6625 | L188: 2006. 8.29 2012.8.20대표변경
A189: 37 | B189: 제주특별자치도 | C189: 금호리조트㈜ | D189: 금호리조트㈜ 제주2차 | E189: 184 | F189: 6 | G189: 2 | H189: 192 | I189: 서귀포시 남원읍 남원리 2390 | J189: 박상배 | K189: 064)766-8000 | L189: 2007. 7 (대표 2012.4.19)
A190: 38 | B190: 제주특별자치도 | C190: ㈜수농 | D190: 샤인빌리조트 2차 | E190: 96 | F190: 7 | G190: 1 | H190: 104 | I190: 서귀포시 표선면 토산리 16 | J190: 박찬수 | K190: 064)787-7000 | L190: 2007. 7
A191: 39 | B191: 제주특별자치도 | C191: 제주리조트㈜ | D191: 사이프러스골프& 리조트 휴양콘도미니엄 | G191: 72 | H191: 72 | I191: 서귀포시 표선면 성읍리 3237-20 | J191: 김진형외 1인 | K191: 064)786-2411 | L191: 2007. 8
A192: 40 | B192: 제주특별자치도 | C192: ㈜보광제주 | D192: 휘닉스아일랜드 | F192: 253 | G192: 97 | H192: 350 | I192: 서귀포시 성산읍 고성리127-2 | J192: 권혁웅 | K192: 064)731-7000 | L192: 2008.06 2009. 2. 26. 대표변경
A193: 41 | B193: 제주특별자치도 | C193: 주식회사 신성리조트 | D193: 신성리조트 | E193: 27 | F193: 33 | G193: 2 | H193: 62 | I193: 서귀포시 법환동 87-1 | J193: 정선희 | K193: 064)739-0114 | L193: 2010.08.26
A194: 42 | B194: 제주특별자치도 | C194: 원더플러스 주식회사 | D194: 제주원더리조트 | E194: 128 | F194: 2 | H194: 130 | I194: 서귀포시 법환동 978외 3필지 | J194: 유미경 | K194: 064)739-3001 | L194: 2010.10.25 10.11.19 대표변경 12.07.16 객실변경등
A195: 43 | B195: 제주특별자치도 | C195: 롯데제주리조트㈜ | D195: 롯데제주리조트㈜ 아트빌라스 | G195: 73 | H195: 73 | I195: 서귀포시 색달동 산 26외 5필지 | J195: 김창권 | K195: 064)739-3460 | L195: 2012.3.23 (상호및부대시설 2012.4.30) 2012.11.19부대시설
A196: 44 | B196: 제주특별자치도 | C196: ㈜동국개발 | D196: 스프링데일 골프&리조트 | F196: 44 | H196: 44 | I196: 서귀포시 남원읍 위미리 산 43 | J196: 강국창 | K196: 064)800-8000 | L196: 2012.06.12

Sheet 종합
A1: 구 분 | D1: 서울 | E1: 부산 | F1: 대구 | G1: 인천 | H1: 광주 | I1: 대전 | J1: 울산 | K1: 경기 | L1: 강원 | M1: 충북 | N1: 충남 | O1: 전북 | P1: 전남 | Q1: 경북 | R1: 경남 | S1: 제주 | T1: 계
A2: 관 | B2: 특1급 | C2: 업체수 | D2: 21 | E2: 6 | F2: 4 | G2: 3 | H2: 2 | I2: 1 | J2: 2 | K2: 2 | L2: 7 | M2: 1 | N2: - | O2: 1 | P2: 2 | Q2: 5 | R2: 2 | S2: 12 | T2: =SUM(D2:S2) -> 71
A3: 광 | C3: 객실수 | D3: 10,366 | E3: 2,389 | F3: 999 | G3: 1,020 | H3: 325 | I3: 174 | J3: 491 | K3: 506 | L3: 1,872 | M3: 328 | N3: - | O3: 118 | P3: 667 | Q3: 1,627 | R3: 487 | S3: 3,622 | T3: =SUM(D3:S3) -> 24,991
A4: 호 | B4: 특2급 | C4: 업체수 | D4: 28 | E4: 4 | F4: 2 | G4: 5 | H4: 2 | I4: 2 | J4: 1 | K4: 5 | L4: 6 | M4: 1 | N4: 3 | O4: 2 | P4: 1 | Q4: 4 | R4: 4 | S4: 4 | T4: =SUM(D4:S4) -> 74
A5: 텔 | C5: 객실수 | D5: 6,436 | E5: 659 | F5: 114 | G5: 1,264 | H5: 198 | I5: 409 | J5: 75 | K5: 761 | L5: 1,066 | M5: 180 | N5: 467 | O5: 277 | P5: 46 | Q5: 656 | R5: 478 | S5: 399 | T5: 13,485
B6: 1급 | C6: 업체수 | D6: 33 | E6: 14 | F6: 2 | G6: 1 | H6: 5 | I6: 4 | J6: - | K6: 20 | L6: 13 | M6: 15 | N6: 1 | O6: 5 | P6: 7 | Q6: 17 | R6: 12 | S6: 18 | T6: 167
C7: 객실수 | D7: 3,833 | E7: 1,391 | F7: 105 | G7: 94 | H7: 305 | I7: 239 | J7: - | K7: 1,651 | L7: 845 | M7: 1,070 | N7: 60 | O7: 412 | P7: 474 | Q7: 1,098 | R7: 1,060 | S7: 1,655 | T7: 14,292
B8: 2급 | C8: 업체수 | D8: 22 | E8: 12 | F8: - | G8: 12 | H8: 6 | I8: 4 | J8: 2 | K8: 17 | L8: 2 | M8: 1 | N8: 7 | O8: 8 | P8: 4 | Q8: 10 | R8: 8 | S8: 6 | T8: 121
C9: 객실수 | D9: 1,293 | E9: 535 | F9: - | G9: 664 | H9: 291 | I9: 144 | J9: 144 | K9: 916 | L9: 97 | M9: 30 | N9: 318 | O9: 373 | P9: 173 | Q9: 514 | R9: 427 | S9: 370 | T9: 6,289
B10: 3급 | C10: 업체수 | D10: 16 | E10: 11 | F10: - | G10: 9 | H10: 1 | I10: 4 | J10: - | K10: 17 | L10: 2 | M10: 3 | N10: 1 | O10: 3 | P10: 1 | Q10: 9 | R10: 2 | S10: 4 | T10: 83
C11: 객실수 | D11: 842 | E11: 1,585 | F11: - | G11: 387 | H11: 44 | I11: 189 | J11: - | K11: 918 | L11: 114 | M11: 103 | N11: 47 | O11: 112 | P11: 53 | Q11: 402 | R11: 86 | S11: 228 | T11: 5,110
B12: 등급 | C12: 업체수 | D12: 31 | E12: 3 | F12: 12 | G12: 16 | H12: 3 | I12: 3 | J12: 3 | K12: 30 | L12: 7 | M12: 2 | N12: 3 | O12: 5 | P12: 22 | Q12: 4 | R12: 13 | S12: 10 | T12: 167
B13: 미정 | C13: 객실수 | D13: 2,940 | E13: 377 | F13: 724 | G13: 681 | H13: 113 | I13: 406 | J13: 108 | K13: 1,589 | L13: 570 | M13: 45 | N13: 144 | O13: 290 | P13: 1,206 | Q13: 179 | R13: 662 | S13: 536 | T13: 10,570
B14: 계 | C14: 업체수 | D14: =SUM(D2,D4,D6,D8,D10,D12) -> 151 | E14: =SUM(E2,E4,E6,E8,E10,E12) -> 50 | F14: 20 | G14: 46 | H14: 19 | I14: 18 | J14: 8 | K14: 91 | L14: 37 | M14: 23 | N14: 15 | O14: 24 | P14: 37 | Q14: 49 | R14: 41 | S14: 54 | T14: 683
C15: 객실수 | D15: =SUM(D3,D5,D7,D9,D11,D13) -> 25,710 | E15: =SUM(E3,E5,E7,E9,E11,E13) -> 6,936 | F15: 1,942 | G15: 4,110 | H15: 1,276 | I15: 1,561 | J15: 818 | K15: 6,341 | L15: 4,564 | M15: 1,756 | N15: 1,036 | O15: 1,582 | P15: 2,619 | Q15: 4,476 | R15: 3,200 | S15: 6,810 | T15: 74,737
A16: 수 상 | C16: 업체수
A17: 관광호텔 | C17: 객실수
A18: 가족호텔 | C18: 업체수 | D18: 9 | E18: 1 | G18: 1 | I18: 1 | K18: 1 | L18: 8 | M18: 1 | N18: 1 | O18: 5 | P18: 6 | Q18: 1 | R18: 9 | S18: 26 | T18: =SUM(D18:S18) -> 70
C19: 객실수 | D19: 1,431 | E19: 17 | G19: 30 | I19: 80 | K19: 52 | L19: 674 | M19: 52 | N19: 100 | O19: 2,051 | P19: 238 | Q19: 90 | R19: 632 | S19: 1,245 | T19: 6,692
A20: 전통호텔 | C20: 업체수 | G20: 1 | P20: 2 | Q20: 1 | S20: 1 | T20: 5
C21: 객실수 | G21: 44 | P21: 145 | Q21: 16 | S21: 26 | T21: 231
A22: 호스텔 | C22: 업체수 | D22: 1 | E22: 2 | G22: 3 | I22: 1 | K22: 1 | N22: 1 | P22: 1 | S22: 18 | T22: 28
C23: 객실수 | D23: 15 | E23: 29 | G23: 15 | I23: 31 | K23: 31 | N23: 10 | P23: 4 | S23: 414 | T23: 549
A24: 소계 | C24: 업체수 | D24: =SUM(D22,D20,D18,D16) -> 10 | E24: =SUM(E22,E20,E18,E16) -> 3 | F24: 0 | G24: 5 | H24: 0 | I24: 2 | J24: 0 | K24: 2 | L24: 8 | M24: 1 | N24: 2 | O24: 5 | P24: 9 | Q24: 2 | R24: 9 | S24: 45 | T24: 103
C25: 객실수 | D25: =SUM(D17,D19,D23,D21) -> 1,446 | E25: =SUM(E17,E19,E23,E21) -> 46 | F25: 0 | G25: 89 | H25: 0 | I25: 111 | J25: 0 | K25: 83 | L25: 674 | M25: 52 | N25: 110 | O25: 2,051 | P25: 387 | Q25: 106 | R25: 632 | S25: 1,685 | T25: =SUM(D25:S25) -> 7,472
A26: 호텔업 | C26: 업체수 | D26: =SUM(D14,D24) -> 161 | E26: =SUM(E14,E24) -> 53 | F26: 20 | G26: 51 | H26: 19 | I26: 20 | J26: 8 | K26: 93 | L26: 45 | M26: 24 | N26: 17 | O26: 29 | P26: 46 | Q26: 51 | R26: 50 | S26: 99 | T26: 786
A27: 소 계 | C27: 객실수 | D27: =SUM(D15,D25) -> 27,156 | E27: =SUM(E15,E25) -> 6,982 | F27: 1,942 | G27: 4,199 | H27: 1,276 | I27: 1,672 | J27: 818 | K27: 6,424 | L27: 5,238 | M27: 1,808 | N27: 1,146 | O27: 3,633 | P27: 3,006 | Q27: 4,582 | R27: 3,832 | S27: 8,495 | T27: 82,209
A28: 휴양콘도미니엄 소계 | C28: 업체수 | E28: 4 | G28: 2 | K28: 16 | L28: 59 | M28: 8 | N28: 11 | O28: 6 | P28: 6 | Q28: 16 | R28: 8 | S28: 44 | T28: 180
C29: 객실수 | E29: 1,385 | G29: 351 | K29: 3,100 | L29: 18,502 | M29: 2,180 | N29: 2,001 | O29: 763 | P29: 960 | Q29: 2,930 | R29: 1,338 | S29: 5,461 | T29: 38,971
A30: 총계 | C30: 업체수 | D30: =SUM(D28,D26) -> 161 | E30: =SUM(E28,E26) -> 57 | F30: 20 | G30: 53 | H30: 19 | I30: 20 | J30: 8 | K30: 109 | L30: 104 | M30: 32 | N30: 28 | O30: 35 | P30: 52 | Q30: 67 | R30: 58 | S30: 143 | T30: 966
C31: 객실수 | D31: =SUM(D29,D27) -> 27,156 | E31: =SUM(E29,E27) -> 8,367 | F31: 1,942 | G31: 4,550 | H31: 1,276 | I31: 1,672 | J31: 818 | K31: 9,524 | L31: 23,740 | M31: 3,988 | N31: 3,147 | O31: 4,396 | P31: 3,966 | Q31: 7,512 | R31: 5,170 | S31: 13,956 | T31: 121,180
